{"text_format":"1","workbook":"xlsx","n_sheets":2,"sheets":["SZ-2021-SuperSearch","Sheet1"],"not_rendered":{"charts":0,"images":4,"macros":1,"external_links":0,"defined_names":4,"comments":0,"pivot_tables":0},"unopened":[],"bounds":{"document_bytes":16777216,"sheet_cells":100000,"rows_first":2000,"rows_last":500,"rows_between":2000,"halvings":0,"cell_chars":16384,"cell_head_chars":4096},"cells_cut":0,"cells_raw":0,"read":"whole","date_system":"1900"}

{"sheet":"SZ-2021-SuperSearch","index":0,"n_rows":746,"n_cols":56,"rows_kept":746,"cut":false,"hidden":false,"merged":[[2,0,2,1],[0,12,0,22],[0,23,0,55],[1,0,1,1],[0,4,0,11],[0,0,0,3],[7,23,7,55],[3,0,3,1],[4,0,4,1],[5,0,5,1],[6,0,6,1],[7,12,7,22],[7,0,7,3],[7,4,7,11]]}
["SEARCH EXHIBITORS",null,null,null,"SZ SECTION",null,null,null,null,null,null,null,"ANIMAL/EXHIBITOR TYPE",null,null,null,null,null,null,null,null,null,null,"DOG and/or CAT PRODUCT CATEGORIES"]
["EXHIBITOR SEARCH  ALL RESULTS ARE COMBINED",null,"EXHIBITOR SEARCH","<< \"U Pick 'Em\" LIST","Nature's Pathway","Rodeo Drive","Critter Alley","Farm & Feed","Groomers","Health & Wellbeing","WPA Good Works","Innovation Incubator","Media, Org","Distributor","Bus Services Rtl/Mfg","Gift/Gen Mdse","Fish","Reptile","Bird","Sm Animal","Horse","Cat","Dog","Books, Mags","Clothes, Costumes","C&L Harn Acc ","ID Tags","Food","Feeding Acc","Treats ","Rawhide","Toys","Exercise. Agility","Catnip","Scratching","Furniture","Tie Out & Contain ","Beds Mats","Doors/Gates","Carriers Crates","Car Safety, Acc","Houses, Kennels","Litter","Litter Acc","Dental","CBD","Meds, Supp","Flea & Tick","Groom Tool","Shampoo","Stain & Odor, Clean","Wipes","Train pads, diapers ","Waste Pickup","Electronic","Track, Monitor"]
["Must have \"Y\" to activate; Then enter \"1\" in column>>",null,"N"]
["To Add on Chge \"N\" to \"Y\"; Then enter \"1\" in column>>",null,"N"]
[" Note: An \"N\" even with \"1's\" will generate no results",null,"N"]
["Note: Multiple \"1's\" in a row mean AND - Must have all",null,"N"]
["Note: A \"Y\" with no \"1\"s brings up the whole list",null,"N"]
["SEARCH RESULTS",null,null,null,"SZ SECTION",null,null,null,null,null,null,null,"ANIMAL/EXHIBITOR TYPE",null,null,null,null,null,null,null,null,null,null,"DOG and/or CAT PRODUCT CATEGORIES"]
["SZ 2021 Booth #","SUPERZOO 2021 EXHIBITOR LIST - (*) Indicates 1st Time Exhibitor","EXHIBITOR SEARCH","<< \"U Pick 'Em\" LIST","Nature's Pathway","Rodeo Drive","Critter Alley","Farm & Feed","Groomers","Wellbeing","WPA Good Works","Innovation  ","Media, Org","Distributor","Bus Services Rtl/Mfg","Gift/Gen Mdse","Fish","Reptile","Bird","Sm Animal","Horse","Cat","Dog","Books, Mags","Clothes, Costumes","C&L Harn Acc ","ID Tags","Food","Feeding Acc","Treats ","Rawhide","Toys","Exercise. Agility","Catnip","Scratching","Furniture","Tie Out & Contain ","Beds Mats","Doors/Gates","Carriers Crates","Car Safety, Acc","Houses, Kennels","Litter","Litter Acc","Dental","CBD","Meds, Supp","Flea & Tick","Groom Tool","Shampoo","Stain & Odor, Clean","Wipes","Train pads, diapers ","Waste Pickup","Electronic","Track, Monitor"]
[3318,"4 Legs Pet CBD & Ranchers Friend Equine CBD (*)","Y",null,1,null,null,null,null,null,null,null,null,null,null,null,null,null,null,null,1,1,1,null,null,null,null,null,null,null,null,null,null,null,null,null,null,null,null,null,null,null,null,null,null,1,1]
[5407,"5-d Tropical","Y",null,null,null,1,null,null,null,null,null,null,1,null,null,1]
[4768,"A Pet with Paws","Y",null,null,1,null,null,null,null,null,null,null,null,null,null,null,null,null,null,null,1,1,null,null,null,null,null,null,null,null,null,null,null,null,null,null,null,null,1,null,null,null,null,null,null,null,null,null,null,null,null,null,1]
[4847,"A&E Cage Company","Y",null,null,null,null,null,null,null,null,null,0,0,null,0,0,1,1,1,0,0,1,0,0,0,0,0,0,0,0,1,0,0,0,0,0,0,0,null,0,null,0,0,0,null,0,0,0,0,0,0,0,0]
[1338,"Above Grooming (*)","Y",null,null,null,null,null,1,null,null,null,null,null,1,null,null,null,null,null,null,null,1,null,null,null,null,null,null,null,null,null,null,null,null,null,null,null,null,null,null,null,null,null,null,null,null,null,1]
[7814,"Absorbine®","Y",null,null,null,null,1,null,null,null,null,null,null,null,null,null,null,null,null,null,1,1,null,null,null,null,null,null,null,null,null,null,null,null,null,null,null,null,null,null,null,null,null,null,null,1]
[5359,"AC Radiocom LLC (*)","Y",null,null,null,null,null,null,null,null,null,null,null,1]
[3849,"Acorn Pet Products LLC (*)","Y",null,1,null,null,null,null,null,null,null,null,null,null,null,null,null,null,null,null,1,1,null,1,1,null,null,null,null,null,null,null,null,null,null,null,null,null,null,null,null,null,null,null,null,1,null,null,null,null,null,null,null,0,0]
[5225,"Adams","Y",null,null,null,null,null,null,null,null,null,null,null,null,null,null,null,null,null,null,1,1,null,null,1,null,null,null,null,null,null,null,null,null,null,null,null,null,null,null,null,null,null,null,null,1,1,null,1]
[3627,"Advance Pet Products","Y",null,1,null,null,null,null,null,null,null,0,0,null,0,0,0,1,0,0,1,1,0,null,0,0,0,1,1,0,1,0,0,0,0,0,null,0,0,0,0,0,1,0,null,1,0,0,0,0,0,0,1]
[4725,"Advantek","Y",null,null,null,null,null,null,null,null,null,null,null,null,null,null,null,null,null,null,null,1,null,null,null,null,null,null,null,null,null,null,null,null,null,null,null,null,null,null,1,null,null,null,null,null,null,null,null,null,null,null,null,null,0]
[5054,"AeroMark International Inc","Y",null,null,null,null,null,null,null,null,null,null,null,null,null,null,null,null,null,null,1,1,null,null,null,null,null,null,null,null,1,null,null,1,1,null,1,null,1,null,null,null,null,null,null,null,null,null,null,null,null,null,null,0]
[3669,"Ageless paws (*)","Y",null,1,null,null,null,null,null,null,null,null,null,null,null,null,null,null,null,null,1,1,null,null,null,null,null,null,1,null,null,null,null,null,null,null,null,null,null,null,null,null,null,null,null,1]
[1953,"Alaska Naturals Pet Products","Y",null,1,null,null,null,null,null,null,null,0,0,null,0,0,0,0,0,0,1,1,0,0,0,0,0,0,null,0,0,0,0,0,0,0,0,0,0,0,0,0,0,0,null,1,0,0,0,0,0,0,0,null,0]
[4960,"All Star Dogs ","Y",null,null,1,null,null,null,null,null,null,null,null,null,1,null,null,null,null,null,null,1,null,1,1,null,null,1,null,null,1,null,null,null,null,null,1,null,null,null,null,null,null,null,null,null,null,null,null,null,null,null,null,0,0]
[4666,"Alpen Schatz","Y",null,null,1,null,null,null,null,null,null,null,null,null,1,null,null,null,null,null,1,1,null,1,1,1,null,null,null,null,null,null,null,null,null,null,null,null,null,null,null,null,null,1,null,1,null,null,1]
[5812,"Alpha Paw LLC (*)","Y",null,null,null,null,null,null,null,null,null,null,null,null,1,null,null,null,null,null,1,1,null,null,1,null,1,null,1,null,null,null,null,null,null,null,1,null,1,1,null,null,null,1,null,1,null,null,1,null,1,1]
[6610,"Amazing Pet Products","Y",null,null,null,null,null,null,null,null,null,0,0,null,0,1,1,1,1,0,1,1,0,null,1,1,0,null,1,1,1,0,null,0,0,1,null,0,0,0,0,1,1,null,null,null,0,1,0,0,0,0,0,0]
[1581,"Amber NaturalZ, Inc.","Y",null,1,null,null,null,null,null,null,null,null,null,null,null,null,1,1,1,null,1,1,null,null,null,null,null,null,null,null,null,null,null,null,null,null,null,null,null,null,null,null,null,null,null,1,null,null,null,null,null,null,null,null,0]
[1578,"Ameri Treats (*)","Y",null,1,null,null,null,null,null,null,null,null,null,null,null,null,null,null,null,null,null,1,null,null,null,null,null,null,1]
[6062,"American Biotech Labs/ Silver Biotics (*)","Y",null,null,null,null,null,null,null,null,null,null,null,null,null,null,null,null,null,null,1,1,null,null,null,null,null,null,null,null,null,null,null,null,null,null,null,null,null,null,null,null,null,1,null,1]
[1228,"American Kennel Club","Y",null,null,null,null,null,1,null,null,null,1,null,1,null,null,null,null,null,null,1,1]
[7767,"AMERICAN MADE BAGS","Y",null,null,null,null,null,null,null,null,1,null,null,1,1]
[5661,"American Pet Products Association/Global Pet Expo","Y",null,null,null,null,null,null,null,null,null,1,null,null,1,null,null,null,null,null,null,null,null,null,null,null,null,null,null,null,null,null,null,null,null,null,null,null,null,null,null,null,null,null,null,null,null,null,null,null,null,null,null,null,0]
[5607,"American Wood Fibers","Y",null,null,null,null,null,null,null,null,null,null,null,null,null,null,1,1,1,1,1,1,null,null,null,null,null,null,null,null,null,null,null,null,null,null,null,null,null,null,null,1]
[6960,"Amoroso Baby Inc. (*)","Y",null,null,null,null,null,null,null,null,null,null,null,null,null,null,null,null,null,null,1,1,null,null,null,null,null,null,null,null,null,null,null,null,1,null,null,null,1]
[5449,"Andersons Pet Care Products","Y",null,null,null,null,null,null,null,null,null,null,null,null,null,null,1,1,1,1,1,null,null,null,null,null,null,null,null,null,null,null,null,null,null,null,null,null,null,null,null,1]
[6254,"Animal Health Solutions Inc.","Y",null,null,null,null,null,null,null,null,null,null,null,null,null,null,null,1,null,1,1,1,null,null,null,null,null,null,null,null,null,null,null,null,null,null,null,null,null,null,null,null,null,null,null,1]
[6230,"Animal Supply Company","Y",null,null,null,null,null,null,null,null,null,null,1,null,null,1,1,1,1,1,1,1,null,1,1,1,1,1,1,1,1,1,1,1,1,1,1,1,1,1,1,1,1,1,1,1,1,1,1,1,1,1,1]
[3547,"Annamaet Petfoods","Y",null,1,null,null,null,null,null,null,null,0,0,null,0,0,0,0,0,0,1,1,0,0,0,0,1,0,1,0,0,0,0,0,0,0,0,0,0,0,0,0,0,0,null,1,0,0,0,0,0,0,0]
[7619,"Annie's Pooch Pops (*)","Y",null,null,null,null,null,null,null,null,null,null,null,null,null,null,null,null,null,null,null,1,null,null,null,null,null,null,1]
[5207,"Aquatop","Y",null,null,null,null,null,null,null,null,null,0,0,0,0,1,0,0,0,0,0,0,0,0,0,0,0,0,0,0,0,0,0,0,0,0,0,0,0,0,0,0,0,0,null,0,0,0,0,0,0,0,0]
[5225,"Aqueon","Y",null,null,null,null,null,null,null,null,null,null,null,null,null,1]
[3413,"Ark Naturals","Y",null,1,null,null,null,null,null,null,null,0,0,null,0,0,0,null,null,0,1,1,0,0,0,0,0,0,1,0,0,0,0,0,0,0,0,0,0,0,0,0,0,1,null,1,1,0,1,0,0,0,0]
[6924,"Arlee Home Fashions","Y",null,null,null,null,null,null,null,null,null,null,null,null,null,null,null,null,null,null,1,1,null,null,1,null,null,null,null,null,null,null,null,null,null,null,1,null,null,1,null,null,null,null,null,null,null,null,null,null,null,null,null,0]
[7264,"Armis BioPharma","Y",null,null,null,null,null,null,null,null,1,null,null,null,null,null,null,null,null,1,1,1,null,null,null,null,null,null,null,null,null,null,null,null,null,null,null,null,null,null,null,null,null,null,null,1,null,null,null,1]
[3818,"Aroma Paws","Y",null,1,null,null,null,null,null,null,null,0,0,null,1,0,0,0,0,0,1,1,0,0,0,0,0,0,0,0,0,0,0,0,0,0,0,0,0,0,0,0,0,0,null,1,1,0,1,1,0,0,0,null,0]
[3725,"Artvark Pet Products, Inc.","Y",null,1,null,null,null,null,null,null,null,0,1,null,0,0,0,0,0,0,1,1,0,0,1,0,0,1,1,1,0,0,0,0,0,0,0,0,0,1,0,0,0,0,null,0,1,1,0,0,0,1,1,1]
[4975,"Asleep In The Boat, AITB LLC (*)","Y",null,null,1,null,null,null,null,null,null,null,null,null,1,null,null,null,null,null,null,1,null,null,1,null,null,null,null,null,null,null,null,null,null,null,null,null,null,null,null,null,null,null,null,null,null,null,null,null,null,null,1]
[6414,"Assisi Animal Health (*)","Y",null,null,null,null,null,null,null,null,null,null,null,null,null,null,null,null,null,1,1,1,null,1,null,null,null,null,null,null,null,null,null,null,null,null,null,null,null,null,null,null,null,null,null,1,null,null,null,null,null,null,null,null,0]
[1549,"Astro loyalty","Y",null,1,null,null,null,null,null,null,null,null,null,1]
[4560,"Auburn Leathercrafters/A Tail We Could Wag","Y",null,null,1,null,null,null,null,null,null,0,0,null,1,0,0,0,0,0,null,1,0,null,1,0,0,0,0,0,1,0,null,0,0,0,0,0,0,0,0,0,0,0,null,0,0,0,0,0,0,0,0,0]
[4049,"Aurora Pet / Pet Healthy Brands / One Heart Pet (*)","Y",null,null,null,null,null,null,null,null,null,null,null,null,null,null,null,null,null,null,1,1,null,null,null,null,null,null,1,null,null,null,null,null,null,null,null,null,null,null,null,1,null,null,null,null,null,null,null,1]
[1547,"Austin and Kat Supplements and CBD","Y",null,1,null,null,null,null,null,null,null,null,null,null,null,null,null,null,null,null,1,1,null,null,null,null,null,null,1,null,null,null,null,null,null,null,null,null,null,null,null,null,null,null,1,1]
[4669,"Aventura Pups (*)","Y",null,null,1,null,null,null,null,null,null,null,null,null,null,null,null,null,null,null,null,1,null,1,1,null,null,1,null,null,1,null,null,null,null,null,1,null,1]
[1646,"AZMIRA HOLISTIC ANIMAL CARE (*)","Y",null,1,null,null,null,null,null,null,null,null,null,null,null,null,null,1,1,null,1,1,null,null,null,null,1,null,null,null,null,null,null,null,null,null,null,null,null,null,null,null,null,null,null,1,null,null,1]
[6511,"Bailey's CBD","Y",null,null,null,null,null,null,null,null,null,null,null,null,null,null,null,null,null,1,1,1,null,null,null,null,null,null,1,null,null,null,null,null,null,null,null,null,null,null,null,null,null,null,1,1]
[4470,"Bark Boutique / Kitty Kaboodle","Y",null,null,1,null,null,null,null,null,null,null,null,null,null,null,null,null,null,null,1,1,null,null,1]
[5255,"Barker's Bowtique","Y",null,null,null,null,null,null,null,null,null,null,null,null,null,null,null,null,null,null,null,1,null,1,1,null,null,null,null,null,1,null,null,null,null,null,1]
[1370,"Barkworthies","Y",null,1,null,null,null,null,null,null,null,0,0,null,0,0,0,0,0,0,0,1,0,0,0,0,0,0,1,0,0,0,0,0,0,0,0,0,0,0,0,0,0,0,null,0,0,0,0,0,0,0,0]
[6415,"Bass Brush Coompany","Y",null,null,null,null,null,null,null,null,null,null,null,null,null,null,null,null,null,1,1,1,null,null,null,null,null,null,null,null,null,null,null,null,null,null,null,null,null,null,null,null,null,null,null,null,null,1]
[4548,"Batz Corporation (*)","Y",null,null,null,null,null,null,null,null,null,null,null,null,null,null,null,1,null,1,null,1,null,null,1,null,null,null,null,null,null,null,null,null,null,1]
[1650,"Because Animals (*)","Y",null,1,null,null,null,null,null,null,null,null,null,null,null,null,null,null,null,null,1,1,null,null,null,null,null,null,1,null,null,null,null,null,null,null,null,null,null,null,null,null,null,null,null,1]
[1072,"Beg & Barker Dog Treats","Y",null,1,null,null,null,null,null,null,null,null,null,null,null,null,null,null,null,null,null,1,null,null,null,null,null,null,1]
[1683,"Bell Rock Growers","Y",null,1,null,null,null,null,null,null,null,0,0,null,null,null,1,1,1,0,1,1,0,0,0,0,0,0,1,0,null,0,1,0,0,0,0,0,0,0,0,0,0,0,null,1,0,0,0,0,0,0,0]
[7214,"Belvedere","Y",null,null,null,null,null,null,null,null,null,null,null,1,1,null,null,null,null,null,null,null,null,null,null,null,null,null,null,null,null,null,null,null,null,null,null,null,null,null,null,null,null,null,null,null,null,null,null,null,null,null,null,1,0]
[7555,"Benebone","Y",null,null,null,null,null,null,null,null,null,null,null,null,null,null,null,null,null,null,null,1,null,null,null,null,null,null,null,null,1,null,null,null,null,null,null,null,null,null,null,null,null,null,null,null,null,null,null,null,null,null,null,1]
[7255,"Best Buds Brew","Y",null,null,null,null,null,null,null,null,null,null,null,null,null,null,null,null,null,null,null,1,null,null,null,null,null,null,null,null,null,null,null,null,null,null,null,null,null,null,null,null,null,null,null,1,null,null,null,null,null,null,null,0]
[6030,"Better Belly","Y",null,null,null,null,null,null,null,null,null,null,null,null,null,null,null,null,null,null,null,1,null,null,null,null,null,null,null,1]
[7755,"Beyond Print Inc.","Y",null,null,null,null,null,null,null,null,null,null,null,1]
[5725,"Big Hairy Dog POS Software - Retail Pro","Y",null,null,null,null,null,null,null,null,null,null,null,1,null,null,null,null,null,null,null,null,null,null,null,null,null,null,null,null,null,null,null,null,null,null,null,null,null,null,null,null,null,null,null,null,null,null,null,null,null,null,null,null,0]
[2039,"Bio Groom","Y",null,null,null,null,null,1,null,null,null,null,null,null,null,null,null,null,1,1,1,1,null,null,null,null,null,null,null,null,null,null,null,null,null,null,null,null,null,null,null,null,null,null,null,1,1,null,1,null,null,null,null,null,0]
[1753,"Bird Pro Bird Food (*)","Y",null,1,null,null,null,null,null,null,null,null,null,null,null,null,null,1,null,null,null,null,null,null,null,null,null,null,null,null,null,null,null,null,null,null,null,null,null,null,null,null,null,null,null,null,null,null,null,null,null,null,null,null,0]
[4269,"Bird Street Bistro (*)","Y",null,null,null,null,null,null,1,null,null,null,null,null,null,null,null,1]
[4025,"BIXBI","Y",null,null,null,null,null,null,null,null,null,0,0,null,0,0,0,0,0,0,null,1,0,0,0,0,1,0,1,0,0,0,0,0,0,0,0,0,0,0,0,0,0,0,1,1,0,0,0,0,0,0,0]
[3347,"Blackwood Pet Food","Y",null,1,null,null,null,null,null,null,null,0,0,null,0,0,0,0,null,null,1,1,0,0,0,0,1,0,1,0,0,0,0,0,0,0,0,0,0,0,0,0,0,0,null,0,0,0,0,0,0,0,0]
[1436,"Blackworks","Y",null,null,null,null,null,1,null,null,null,null,null,1,null,null,null,null,null,null,1,1,null,null,null,null,null,null,null,null,null,null,null,null,null,null,null,null,null,null,null,null,null,null,null,null,null,1]
[3947,"Blue Dog Bakery","Y",null,1,null,null,null,null,null,null,null,0,0,null,0,0,0,0,0,0,0,1,0,0,0,0,0,0,1,0,0,0,0,0,0,0,0,0,0,0,0,0,0,0,null,0,0,0,0,0,0,0,0]
[5819,"Blue Ribbon Pet Products, Inc.","Y",null,null,null,null,null,null,null,null,null,0,0,null,0,1,1,1,null,0,0,1,0,0,0,0,0,0,0,0,1,0,0,0,0,0,0,0,0,0,0,0,0,0,null,0,0,0,0,0,0,0,0]
[4471,"Bo Dog Collars","Y",null,null,1,null,null,null,null,null,null,null,null,null,null,null,null,null,null,null,null,1,null,null,1]
[1659,"Bocce's Bakery","Y",null,1,null,null,null,null,null,null,null,0,0,null,0,0,0,0,0,0,0,1,0,0,0,0,0,0,1,0,0,0,0,0,0,0,0,0,0,0,0,0,0,0,null,0,0,0,0,0,0,0,0,0,0]
[4771,"BONBI ALCON CO., LTD.","Y",null,null,1,null,null,null,null,null,null,null,null,null,null,null,null,null,null,null,1,1,null,null,null,null,null,null,1,null,null,1,null,1,1,null,1,null,1,null,null,1,1,null,null,null,null,null,null,1,null,1,1]
[3969,"Bonne et Filou (*)","Y",null,1,null,null,null,null,null,null,null,null,null,null,null,null,null,null,null,null,null,1,null,null,null,null,null,1,1,null,1,null,null,null,null,null,null,null,null,null,null,null,null,null,null,null,null,null,null,null,null,null,null,null,0]
[1472,"BOSS NATION BRANDS INC BOSS DOG BRAND and BOSS CAT BRAND","Y",null,1,null,null,null,null,null,null,null,null,null,null,null,null,null,null,null,null,1,1,null,null,1,null,1,1,1,null,null,null,null,null,null,null,null,null,null,null,null,null,null,null,null,1]
[3302,"Bravo Pet Foods","Y",null,1,null,null,null,null,null,null,null,0,0,null,0,0,0,0,0,0,1,1,0,0,0,0,1,0,1,0,0,0,0,0,0,0,0,0,0,0,0,0,0,0,null,1,0,0,0,0,0,0,0]
[1652,"Bright Planet Pet","Y",null,1,null,null,null,null,null,null,null,null,null,null,null,null,null,null,null,null,null,1,null,null,null,null,null,null,1]
[3452,"BrightPet Nutrition Group","Y",null,1,null,null,null,null,null,null,null,0,0,1,0,0,0,0,null,null,1,1,0,0,0,0,1,0,1,0,0,0,0,0,0,0,0,0,0,0,0,0,0,0,null,0,0,0,0,0,0,0,0]
[4170,"Brilliant Salmon oil (*)","Y",null,null,null,null,null,null,1,null,null,null,null,null,null,null,null,null,null,null,1,1,null,null,null,null,null,null,null,null,null,null,null,null,null,null,null,null,null,null,null,null,null,null,null,1]
[3565,"Brutus Broth","Y",null,1,null,null,null,null,null,null,null,null,null,null,null,null,null,null,null,null,null,1,null,null,null,null,null,null,1,null,null,null,null,null,null,null,null,null,null,null,null,null,null,null,null,1]
[1277,"Buck Bone Organics","Y",null,1,null,null,null,null,null,null,null,null,null,null,null,null,null,null,null,null,null,1,null,null,null,null,null,null,1,null,1,null,null,null,null,null,null,null,null,null,null,null,null,null,null,1]
[4867,"Buckle-Down Inc.","Y",null,null,1,null,null,null,null,null,null,0,0,null,0,0,0,0,0,0,0,1,0,0,1,0,0,0,0,0,0,0,0,0,0,0,0,0,0,0,0,0,0,0,null,0,0,0,0,0,0,0,0]
[6508,"Buddeez","Y",null,null,null,null,null,null,null,null,null,null,null,null,null,null,null,null,null,null,1,1,null,null,null,null,null,1,null,null,null,null,null,null,null,null,null,null,null,null,null,null,null,null,null,null,null,null,null,null,null,null,null,0,0]
[4967,"BUDDY BELTS","Y",null,null,1,null,null,null,null,null,null,0,0,null,0,0,0,0,0,0,0,1,0,0,1,0,0,0,0,0,0,0,0,0,0,0,0,0,0,0,0,0,0,0,null,0,0,0,0,0,0,0,1]
[5013,"Butcher's Bones","Y",null,null,null,null,null,null,null,null,null,null,null,null,null,null,null,null,null,null,null,1,null,null,null,null,null,null,1,null,null,null,null,null,null,null,null,null,null,null,null,null,null,null,null,null,null,null,null,null,null,null,null,0]
[4278,"C&E Animal Health (*)","Y",null,null,null,null,null,null,1,null,null,null,null,null,null,null,null,1,null,1,1,1,null,null,null,null,null,null,1,null,null,null,null,null,null,null,null,null,null,null,null,null,null,1,null,1]
[6850,"Cabka North America Inc (*)","Y",null,null,null,null,null,null,null,null,null,null,null,1]
[4219,"Caitec Corporation","Y",null,null,null,null,null,null,null,null,null,0,0,null,0,1,0,1,1,0,0,1,0,0,0,0,0,null,0,0,1,0,0,0,0,0,0,0,null,0,0,0,0,0,null,0,0,0,0,0,0,0,0]
[1872,"Caledon Farms (*)","Y",null,1,null,null,null,null,null,null,null,null,null,null,null,null,null,null,null,null,1,1,null,null,null,null,null,null,1]
[7266,"Calmeroos","Y",null,null,null,null,null,null,null,null,1,null,null,null,null,null,null,null,null,null,1,1,null,null,null,null,null,null,null,null,1,null,null,null,null,null,null,null,null,null,null,null,null,null,null,1,null,null,null,null,null,null,null,1]
[5116,"CALPLUSH MFG CORP","Y",null,null,null,null,null,null,null,null,null,null,null,null,null,null,null,null,null,null,null,1,null,null,null,null,null,null,null,null,1]
[4766,"CAMILLA Pups","Y",null,null,1,null,null,null,null,null,null,null,null,null,null,null,null,null,null,null,null,1,null,1,null,null,null,1,null,null,null,null,null,null,null,null,1]
[6039,"Canidae Pet Foods","Y",null,null,null,null,null,null,null,null,null,0,0,null,0,0,0,0,0,0,1,1,0,0,0,0,1,0,1,0,0,0,0,0,0,0,0,0,0,0,0,0,0,0,null,0,0,0,0,0,0,0,0]
[4569,"Canine Brands","Y",null,null,1,null,null,null,null,null,null,null,1,null,null,null,null,null,null,null,null,1,null,1,1,null,null,1,null,null,1,null,null,null,null,null,1]
[4139,"Canine Caviar Pet Foods","Y",null,null,null,null,null,null,null,null,null,0,0,null,0,0,0,0,0,0,1,1,0,0,0,0,1,0,1,0,0,0,0,0,0,0,0,0,0,0,0,0,0,0,null,1,0,0,0,0,0,0,0,0,0]
[4269,"Cannaisseur Brands (*)","Y",null,null,null,null,null,null,1,null,null,null,null,null,null,null,null,null,null,null,1,1,null,null,null,null,null,null,null,null,null,null,null,null,null,null,null,null,null,null,null,null,null,null,1,1]
[1074,"CANOPHERA GmbH & Co. KG","Y",null,1,null,null,null,null,null,null,null,null,null,null,null,null,null,null,null,null,null,1,null,null,null,null,null,null,null,null,1,null,null,null,null,null,null,null,null,null,null,null,null,1]
[6749,"Canopy Growth","Y",null,null,null,null,null,null,null,null,null,null,null,null,null,null,null,null,null,null,1,1,null,null,null,null,null,null,null,null,null,null,null,null,null,null,null,null,null,null,null,null,null,null,1,1]
[5113,"Careington International Corporation (*)","Y",null,null,null,null,null,null,null,null,null,null,null,1]
[4653,"Carpenter Co. (*)","Y",null,null,null,null,null,null,null,null,null,null,null,null,null,null,null,null,null,null,null,1,null,null,null,null,null,null,null,null,null,null,null,null,null,null,1]
[4452,"Cat Dancer Products","Y",null,null,null,null,null,null,null,null,null,0,0,null,0,0,0,0,0,0,1,0,0,0,0,0,0,0,null,0,1,0,0,1,0,0,0,0,0,0,0,0,0,0,null,0,0,0,0,0,0,0,0]
[6458,"Celerant Technology","Y",null,null,null,null,null,null,null,null,null,null,null,1]
[5225,"Central Garden and Pet","Y",null,null,null,null,null,null,null,null,null,0,0,null,null,1,1,1,1,1,1,1,1,null,1,null,null,1,1,1,1,null,null,1,1,1,1,1,1,1,null,null,null,1,null,1,1,1,1,1,1,1,1,null,0]
[6627,"Central Pet Distribution","Y",null,null,null,null,null,null,null,null,null,0,1,null,0,1,1,1,1,1,1,1,1,1,1,1,1,1,1,1,1,1,1,1,1,1,1,1,1,1,1,1,1,1,1,1,1,1,1,1,1,1,1]
[5106,"Ceynetco International, Inc","Y",null,null,null,null,null,null,null,null,null,null,null,null,null,null,1]
[1570,"Charlee Bear Treats","Y",null,1,null,null,null,null,null,null,null,null,null,null,null,null,null,null,null,null,null,1,null,null,null,null,null,null,1,null,null,null,null,null,null,null,null,null,null,null,null,null,null,null,null,null,null,null,null,null,null,null,null,0]
[3213,"Charlotte's Web Stanley Brothers","Y",null,1,null,null,null,null,null,null,null,null,null,null,null,null,null,null,null,null,null,1,null,null,null,null,null,null,1,null,null,null,null,null,null,null,null,null,null,null,null,null,null,null,1,1,null,null,null,null,null,null,null,0]
[5076,"Chewish Pet Toys","Y",null,null,1,null,null,null,null,null,null,null,null,null,null,null,null,null,null,null,1,1,null,null,null,null,null,1,null,null,1,null,null,1]
[6754,"Chicken Soup for the Soul Pet Food","Y",null,null,null,null,null,null,null,null,null,0,0,null,0,0,0,0,0,0,1,1,0,0,0,0,1,0,1,0,0,0,0,0,0,0,0,0,0,0,0,0,0,0,null,0,0,0,0,0,0,0,0,null,0]
[1654,"Chill Paws","Y",null,1,null,null,null,null,null,null,null,null,null,null,null,null,null,null,null,null,1,1,null,null,null,null,null,null,1,null,null,null,null,null,null,null,null,null,null,null,null,null,null,null,1,1]
[4861,"CHILLY DOG","Y",null,null,1,null,null,null,null,null,null,0,0,null,0,0,0,0,0,0,1,1,0,1,null,0,0,0,0,0,1,0,0,0,0,0,0,0,0,0,0,0,0,0,null,0,0,0,0,0,0,0,0]
[4966,"Chloe & Max, LLC","Y",null,null,1,null,null,null,null,null,null,null,null,null,null,null,null,null,null,null,null,1,null,1,1,null,null,null,null,null,null,null,null,null,null,null,null,null,1]
[3865,"Choovio","Y",null,1,null,null,null,null,null,null,null,null,null,null,null,null,null,null,null,null,null,1,null,null,null,null,null,null,1,null,null,null,null,null,null,null,null,null,null,null,null,null,null,null,null,null,null,null,null,null,null,null,null,1]
[4911,"Cintas (*)","Y",null,null,null,null,null,null,null,null,null,null,null,1]
[4239,"Coastal Pet Products","Y",null,null,null,null,null,null,null,null,null,0,0,null,0,0,null,0,null,1,1,1,0,0,1,1,0,1,null,0,1,0,1,1,0,1,0,0,1,1,0,0,null,0,null,null,0,1,0,0,0,1,1]
[3665,"Colorado Hemp Honey","Y",null,1,null,null,null,null,null,null,null,null,null,null,null,null,null,null,null,null,1,1,null,null,null,null,null,null,null,null,null,null,null,null,null,null,null,null,null,null,null,null,null,null,1,1]
[6311,"Colorado Kitty Pot (*)","Y",null,null,null,null,null,null,null,null,null,null,null,null,null,null,null,null,null,null,1,1,null,null,1,null,null,null,null,null,1,null,1]
[6454,"Colormasters LLC","Y",null,null,null,null,null,null,null,null,null,null,null,1,null,null,null,null,null,null,1,1,null,null,null,null,1,null,1]
[7008,"Combase USA (*)","Y",null,null,null,null,null,null,null,null,null,null,null,1]
[5225,"Comfort Zone","Y",null,null,null,null,null,null,null,null,null,null,null,null,null,null,null,null,null,null,1,null,null,null,1,null,null,null,null,null,null,null,null,null,null,null,null,null,null,null,null,null,null,null,null,1]
[5454,"Comp-Ware Systems, Inc.","Y",null,null,null,null,null,null,null,null,null,null,null,1]
[5712,"Cookie Pal","Y",null,null,null,null,null,null,null,null,null,null,null,null,null,null,null,null,null,null,null,1,null,null,null,null,null,null,1,null,null,null,null,null,null,null,null,null,null,null,null,null,null,null,null,1,null,null,null,null,null,null,null,null,0]
[5225,"Coralife","Y",null,null,null,null,null,null,null,null,null,null,null,null,null,1,null,null,null,null,null,null,null,null,null,null,null,null,null,null,null,null,null,null,null,null,null,null,null,null,null,null,null,null,null,null,null,null,null,null,null,null,null,null,0]
[4627,"Cosmic Pet ","Y",null,null,null,null,null,null,null,null,null,null,null,null,null,null,null,null,null,null,1,1,null,1,1,null,null,1,1,null,1,null,1,1,1,null,1,null,null,null,null,null,1,null,null,null,null,null,null,1,null,null,1]
[7608,"Crazy K Farm Pet and Poultry Products","Y",null,null,null,null,null,null,null,null,null,0,0,0,0,0,0,1,0,0,1,1,0,0,1,0,0,0,0,0,0,0,0,0,0,0,1,0,0,0,0,0,0,0,null,1,0,0,0,0,0,0,0]
[5159,"CrittEar (*)","Y",null,null,null,null,null,null,null,null,null,null,null,null,null,null,null,null,null,null,null,1,null,null,null,null,null,null,null,null,null,null,null,null,null,null,null,null,null,null,null,null,null,null,null,1]
[1344,"Crown to Tail (*)","Y",null,1,null,null,null,null,null,null,null,null,null,null,null,null,null,null,null,null,null,1,null,null,null,null,null,null,1]
[1153,"Crumps' Naturals","Y",null,1,null,null,null,null,null,null,null,0,0,null,0,0,0,0,0,0,1,1,0,null,0,0,null,0,1,0,0,0,0,0,0,0,0,0,0,0,0,0,0,0,null,0,0,0,0,0,0,0,0]
[1329,"Crystal Works","Y",null,null,null,null,null,1,null,null,null,null,null,null,1]
[5555,"Curicyn","Y",null,null,null,null,null,null,null,null,null,null,null,null,null,null,1,1,1,1,1,1,null,null,null,null,null,null,null,null,null,null,null,null,null,null,1,null,null,null,null,null,null,null,null,1,1]
[4353,"curli AG","Y",null,null,null,null,null,null,null,null,null,null,null,null,null,null,null,null,null,null,null,1,null,null,1,null,null,1,null,null,null,null,null,null,null,null,null,null,null,1]
[1941,"Curry on a Stik' (*)","Y",null,null,null,null,null,1,null,null,null,null,null,1,null,null,null,null,null,1,1,1,null,null,null,null,null,null,null,null,null,null,null,null,null,null,null,null,null,null,null,null,null,null,null,null,null,1]
[5012,"Curtis Wagner Plastics Corp.","Y",null,null,null,null,null,null,null,null,null,null,null,null,null,null,null,null,null,null,1,1,null,null,null,null,null,1,null,null,null,null,null,null,null,null,null,null,null,null,null,null,1,null,null,null,null,null,null,null,null,null,null,null,0]
[6358,"Custom Pet","Y",null,null,null,null,null,null,null,null,null,null,null,1,null,null,null,null,null,null,null,1,null,null,null,null,null,null,1]
[6855,"Custom Veterinary Services, LLC (*)","Y",null,null,null,null,null,null,null,null,null,null,null,1,null,null,null,null,null,1,1,1,null,null,null,null,null,null,1,null,null,null,null,null,null,null,null,null,null,null,null,null,null,1,null,1,1,null,1,null,1]
[7111,"Darford/ CanAm Pet Treats Inc.","Y",null,null,null,null,null,null,null,null,null,null,null,null,null,null,null,null,null,null,null,1,null,null,null,null,1,null,1,null,null,null,null,null,null,null,null,null,null,null,null,null,null,null,null,null,null,null,null,null,null,null,null,0]
[7565,"Dawg Powered! (*)","Y",null,null,null,null,null,null,null,null,1,null,null,null,null,null,null,null,null,null,null,1,null,null,null,null,null,null,null,null,null,1]
[4061,"De’Vora (*)","Y",null,null,null,null,null,null,1,null,null,null,null,null,null,null,null,null,null,null,1,1,null,null,null,null,null,null,1,null,1,null,null,1,null,null,null,null,null,null,null,null,null,null,null,1,null,1]
[7363,"Deb’s Gourmet Pet Broth (*)","Y",null,null,null,null,null,null,null,null,1,null,null,null,null,null,null,null,null,null,null,1,null,null,null,null,null,null,null,null,null,null,null,null,null,null,null,null,null,null,null,null,null,null,null,1]
[4739,"Delectables","Y",null,null,null,null,null,null,null,null,null,null,null,null,null,null,null,null,null,null,1,1,null,null,null,null,null,null,1,null,null,null,null,null,null,null,null,null,null,null,null,null,null,null,null,1]
[5858,"Delta Industries International Inc.","Y",null,null,null,null,null,null,null,null,null,null,null,null,null,null,1,1,1,1,1,1,null,null,null,null,null,null,null,null,null,null,null,null,null,null,null,null,null,null,null,null,null,null,null,null,null,1]
[6911,"Dexas International, Ltd.","Y",null,null,null,null,null,null,null,null,null,null,null,null,null,null,null,null,null,null,null,1,null,null,null,null,null,1,null,null,null,null,null,null,null,null,null,null,null,null,null,null,null,null,null,null,null,1]
[7762,"Dezi & Roo (*)","Y",null,null,null,null,null,null,null,null,1,null,null,null,null,null,null,null,null,null,1,null,null,null,null,null,null,null,null,null,1,null,1,null,1,null,null,null,null,null,null,null,null,null,null,1]
[6354,"Dharma Dog Karma Cat","Y",null,null,null,null,null,null,null,null,null,null,null,null,null,null,null,null,null,null,1,1,null,null,null,null,null,null,null,null,1,null,null,null,null,null,1]
[4065,"Diedrich Pet","Y",null,null,null,null,null,null,1,null,null,null,null,null,null,null,null,null,null,null,null,1,null,null,null,null,null,null,1,null,null,null,null,null,null,null,null,null,null,null,null,null,null,null,null,null,null,null,null,null,null,null,null,0,0]
[5519,"Digby & Fox (*)","Y",null,null,null,null,null,null,null,null,null,null,null,null,null,null,null,null,null,1,null,1,null,1,1,null,null,null,null,null,null,null,null,null,null,null,1,null,null,null,null,null,null,null,null,null,null,1]
[1137,"Direct Animal Products","Y",null,null,null,null,null,1,null,null,null,null,null,1,null,null,null,null,null,null,1,1,null,null,null,null,null,null,null,null,null,null,null,null,null,null,null,1,1,null,1,null,null,null,null,null,null,1]
[7824,"Disney Table Scraps / Phelps Pet Products","Y",null,null,null,null,null,null,null,null,null,null,null,1,null,null,null,null,null,null,null,1,null,null,null,null,null,null,1,null,null,null,null,null,null,null,null,null,null,null,null,null,null,null,null,null,null,null,null,null,null,null,null,0,0]
[6315,"DM Fulfillment Services","Y",null,null,null,null,null,null,null,null,null,null,null,1,null,null,null,null,null,null,null,null,null,null,null,null,null,null,null,null,null,null,null,null,null,null,null,null,null,null,null,null,null,null,null,null,null,null,null,null,null,null,null,0]
[5225,"DMC","Y",null,null,null,null,null,null,null,null,null,null,null,null,null,null,null,null,null,null,1,1,null,null,null,null,null,null,null,null,null,null,null,null,null,null,1]
[5716,"DNA My DOG / Allergy Test My Pet","Y",null,null,null,null,null,null,null,null,null,null,null,null,1,null,null,null,null,null,null,1,null,null,null,null,null,null,null,null,null,null,null,null,null,null,null,null,null,null,null,null,null,null,null,1,null,null,null,null,null,null,null,1]
[6654,"DOCO Pet LLC","Y",null,null,null,null,null,null,null,null,null,null,null,null,null,null,null,null,null,null,1,1,null,1,1,null,null,null,null,null,null,null,null,null,null,null,null,null,null,1]
[5062,"Doctor Multimedia","Y",null,null,null,null,null,null,null,null,null,null,null,1]
[7560,"Dog Collar World","Y",null,null,null,null,null,null,null,null,null,null,null,null,null,null,null,null,null,null,null,1,null,1,1]
[4971,"Dog Diggin Designs","Y",null,null,1,null,null,null,null,null,null,null,null,null,null,null,null,null,null,null,null,1,null,null,null,null,null,null,null,null,1,null,null,null,null,null,1]
[5249,"Dog Gone Smart","Y",null,null,null,null,null,null,null,null,null,null,null,null,null,null,null,null,null,null,1,1,null,1,1,0,0,1,0,0,0,0,0,0,0,0,1,0,0,0,0,0,1,null,null,null,null,1,null,null,null,null,1]
[5071,"Dog is Good","Y",null,null,null,null,null,null,null,null,null,0,0,null,1,0,0,0,0,0,null,1,0,null,1,1,0,1,1,0,null,0,0,0,0,0,0,0,null,1,0,0,0,0,null,0,0,0,0,0,0,0,1]
[3662,"DOG TREAT NATURALS (*)","Y",null,1,null,null,null,null,null,null,null,null,null,null,null,null,null,null,null,null,null,1,null,null,null,null,null,null,1]
[4955,"Doggie Walk Bags Inc","Y",null,null,null,null,null,null,null,null,null,null,null,null,null,null,null,null,null,null,1,1,null,null,null,null,null,null,null,null,null,null,null,null,null,null,null,null,null,null,null,null,1,null,null,null,null,null,null,null,null,null,1]
[6248,"Doggy Bathroom","Y",null,null,null,null,null,null,null,null,null,null,null,null,null,null,null,null,null,null,null,1,null,null,null,null,null,null,null,null,null,null,null,null,null,null,null,null,null,null,null,null,null,null,null,null,null,null,null,null,null,1,1]
[1459,"Doggy Delirious","Y",null,1,null,null,null,null,null,null,null,null,null,null,null,null,null,null,null,null,null,1,null,null,null,null,null,null,1,null,null,null,null,null,null,null,null,null,null,null,null,null,null,null,null,null,null,null,null,null,null,null,null,0]
[4467,"Doggy Tales","Y",null,null,1,null,null,null,null,null,null,null,null,null,null,null,null,null,null,null,null,1,null,null,1,null,null,null,null,null,null,null,null,null,null,null,null,null,null,null,null,null,null,null,null,null,null,null,null,null,null,null,null,0]
[6719,"Dogline","Y",null,null,null,null,null,null,null,null,null,0,0,null,0,0,0,0,0,0,null,1,0,1,1,0,0,1,0,0,1,0,0,0,0,0,0,0,1,1,0,0,0,0,null,0,0,0,0,0,0,0,1]
[7110,"Dogtra Co.","Y",null,null,null,null,null,null,null,null,null,null,null,null,null,null,null,null,null,null,null,1,null,null,1,null,null,null,null,null,1,null,null,null,null,1]
[3963,"DOGTV","Y",null,1,null,null,null,null,null,null,null,null,null,null,1,null,null,null,null,null,null,1]
[3765,"DOOG","Y",null,1,null,null,null,null,null,null,null,null,null,null,null,null,null,null,null,null,null,1,null,null,1,null,null,1,null,null,1,null,null,null,null,null,null,null,null,null,null,null,null,null,null,null,null,null,null,null,null,null,1]
[7354,"DoorDash","Y",null,null,null,null,null,null,null,null,null,null,null,1]
[6025,"Dr. Elsey's Precious Cat","Y",null,null,null,null,null,null,null,null,null,null,null,null,null,null,null,null,null,null,1,null,null,null,null,null,1,null,null,null,null,null,null,null,null,null,null,null,null,null,null,1,null,null,null,null,null,null,null,1]
[6160,"Dragon Engravers","Y",null,null,null,null,null,null,null,null,null,null,null,1,1,null,null,null,null,null,null,1,null,null,1,1,null,null,null,null,null,null,null,null,null,null,null,null,null,null,null,null,null,null,null,null,null,null,null,null,null,null,null,0,0]
[6030,"DreamBone","Y",null,null,null,null,null,null,null,null,null,null,null,null,null,null,null,null,null,null,null,1,null,null,null,null,null,null,1,null,null,null,null,null,null,null,null,null,null,null,null,null,null,1]
[4825,"DrTim's Aquatics","Y",null,null,null,null,null,null,null,null,null,null,null,null,null,1]
[7115,"DT SYSTEMS","Y",null,null,null,null,null,null,null,null,null,0,0,null,0,0,0,0,0,0,0,1,0,0,1,0,0,0,0,0,0,1,0,0,0,1,0,0,0,0,0,0,0,0,null,0,0,0,0,0,0,0,0]
[5209,"DubiaRoaches.com","Y",null,null,null,null,null,null,null,null,null,null,null,null,null,1,1,1]
[6159,"duit (*)","Y",null,null,null,null,null,null,null,null,null,null,null,null,null,null,null,null,null,null,null,1,null,null,null,null,null,1,null,null,null,null,null,null,1,null,null,null,null,null,null,null,null,null,null,null,null,1]
[1874,"Durkha Dog Chew","Y",null,1,null,null,null,null,null,null,null,null,null,null,null,null,null,null,null,null,1,1,null,null,null,null,null,null,1,null,1,null,null,null,null,null,1,null,null,null,null,null,null,null,null,null,null,null,null,null,null,null,null,null,0]
[5755,"Durvet Inc","Y",null,null,null,null,null,null,null,null,null,null,null,null,null,null,null,1,null,1,1,1,null,null,null,null,null,null,null,null,null,null,null,null,null,null,null,null,null,null,null,null,null,null,null,1,1,null,1,null,null,null,null,null,0]
[1945,"DUZ Dryer","Y",null,1,null,null,null,null,null,null,null,null,null,null,null,null,null,null,null,null,null,1,null,null,null,null,null,null,null,null,null,null,null,null,null,null,null,null,null,null,null,null,null,null,null,null,null,1]
[4760,"E & S Pets","Y",null,null,1,null,null,null,null,null,null,0,0,0,1,0,0,null,null,null,null,null,0,0,0,0,0,0,0,0,0,0,0,0,0,0,0,0,0,0,0,0,0,0,null,0,0,0]
[1478,"E3 Ranch K9 Performance (*)","Y",null,1,null,null,null,null,null,null,null,null,null,null,null,null,null,null,null,null,null,1,null,null,null,null,null,null,1]
[3839,"Earth Animal","Y",null,1,null,null,null,null,null,null,null,null,null,null,null,null,null,null,null,null,1,1,null,null,1,null,1,null,1,null,null,null,null,null,null,null,null,null,null,null,null,null,null,null,1,1,1,null,1,null,0,0,0]
[1553,"Earth Buddy Pet Products","Y",null,1,null,null,null,null,null,null,null,null,null,null,null,null,null,null,null,null,1,1,null,null,null,null,null,null,1,null,null,null,null,null,null,null,null,null,null,null,null,null,null,null,1,1]
[3912,"Earth MD (*)","Y",null,1,null,null,null,null,null,null,null,null,null,null,null,null,null,null,null,null,1,1,null,null,null,null,null,null,null,null,null,null,null,null,null,null,null,null,null,null,null,null,null,null,null,1,1]
[4839,"Earth Rated","Y",null,null,null,null,null,null,null,null,null,0,0,null,0,0,0,0,0,0,0,1,0,0,0,0,0,0,0,0,0,0,0,0,0,0,0,0,0,0,0,0,0,0,null,0,0,0,0,1,0,0,1]
[7249,"Earthbath","Y",null,null,null,null,null,null,null,null,null,0,0,null,0,0,0,0,0,0,1,1,0,0,0,0,0,0,0,0,0,0,0,0,0,0,0,0,0,0,0,0,0,0,null,0,0,0,1,0,1,0,0]
[7258,"E-collar Technologies, Inc.","Y",null,null,null,null,null,null,null,null,null,null,null,null,null,null,null,null,null,null,null,1,null,null,1,null,null,null,null,null,null,null,null,null,null,1]
[6215,"EcoSpaw","Y",null,null,null,null,null,null,null,null,null,null,null,null,null,null,null,null,null,null,1,1,null,null,null,null,null,null,null,null,null,null,null,null,null,null,null,null,null,null,null,null,null,null,null,null,1,null,1,1]
[6819,"ellePet by ElleVet Sciences (*)","Y",null,null,null,null,null,null,null,null,null,null,null,null,null,null,null,null,null,null,1,1,null,null,null,null,null,null,1,null,null,null,null,null,null,null,null,null,null,null,null,null,null,null,1,1,null,null,null,null,null,null,null,1]
[4564,"Elmo's Closet","Y",null,null,1,null,null,null,null,null,null,0,0,null,0,0,0,0,0,0,1,1,0,0,1,0,0,0,0,0,0,0,0,0,0,0,0,0,0,0,0,0,0,0,null,0,0,0,0,0,0,0,0]
[7011,"Endless Possibilities: Kitty Boinks & Bamboozlers","Y",null,null,null,null,null,null,null,null,null,null,null,null,null,null,null,null,null,null,1,null,null,null,null,null,null,null,null,null,1,null,null,null,null,null,null,null,null,null,null,null,null,null,null,null,null,null,null,null,null,null,null,0]
[4361,"Enjoy It LLC (*)","Y",null,null,1,null,null,null,null,null,null,null,null,null,1,null,null,null,null,null,null,null,null,null,null,null,null,null,null,null,null,null,null,null,null,null,null,null,null,null,null,null,null,null,null,null,null,null,null,null,null,null,null,0]
[7860,"Enviro Protection Industries (*)","Y",null,null,null,null,null,null,null,null,null,null,null,null,null,null,null,null,null,null,1,1,null,null,1,null,null,null,null,null,null,null,null,null,null,null,null,null,null,null,null,null,null,null,null,1,1]
[1237,"Envirogroom-Special FX-Shop Care","Y",null,null,null,null,null,1,null,null,null,null,null,1,null,null,null,null,null,1,1,1,null,null,null,null,null,null,null,null,null,null,null,null,null,null,null,null,null,null,null,null,null,null,null,1,1,null,1,1]
[5763,"eShipping","Y",null,null,null,null,null,null,null,null,null,null,null,1]
[1246,"eTailPet (*)","Y",null,1,null,null,null,null,null,null,null,null,null,1]
[6055,"Eternal Friends Home Niche (*)","Y",null,null,null,null,null,null,null,null,null,null,null,null,1,null,null,null,null,null,1,1]
[4339,"Ethical Products, Inc.","Y",null,null,null,null,null,null,null,null,null,0,0,null,0,null,0,1,1,0,1,1,0,1,null,0,0,1,1,null,1,0,null,null,0,null,1,0,1,1,0,0,1,0,null,0,0,1,0,0,0,null,1,0]
[7360,"Euro-Dog Collars and Leads","Y",null,null,null,null,null,null,null,null,null,null,null,null,null,null,null,null,null,null,null,1,null,null,1]
[7439,"European Home Design (Bow-wow Pet)","Y",null,null,null,null,null,null,null,null,null,0,0,null,0,0,0,0,null,0,1,1,0,1,1,0,0,0,0,0,1,0,0,null,1,0,1,0,1,1,1,0,0,0,null,0,0,null,0,0,0,1,1,0]
[1346,"EuroPet","Y",null,1,null,null,null,null,null,null,null,null,null,null,null,null,null,null,null,null,1,1,null,1,null,null,null,1,null,null,null,null,null,null,1,null,null,null,null,null,null,null,null,null,null,1]
[7463,"Eusoh Community Pet Health Plan (*)","Y",null,null,null,null,null,null,null,null,1,null,null,1]
[1975,"Evanger's Dog and Cat Food Co., Inc.","Y",null,1,null,null,null,null,null,null,null,0,0,null,0,0,0,0,1,0,1,1,0,0,0,0,1,0,1,0,0,0,0,0,0,0,0,0,0,0,0,0,0,0,null,0,0,0,0,0,0,0,0]
[1938,"Evolution Shears","Y",null,null,null,null,null,1,null,null,null,null,null,1,null,null,null,null,null,null,1,1,null,null,null,null,null,null,null,null,null,null,null,null,null,null,null,null,null,null,null,null,null,null,null,null,null,1]
[6324,"Exclusively Pet, Inc.","Y",null,null,null,null,null,null,null,null,null,0,0,0,0,0,0,0,0,0,0,1,0,0,0,0,0,0,1,0,0,0,0,0,0,0,0,0,0,0,0,0,0,0,null,0,0,0]
[1944,"Farm Fresh Pet Foods","Y",null,1,null,null,null,null,null,null,null,null,null,null,null,null,null,null,null,null,null,1,null,null,null,null,null,null,1,null,null,null,null,null,null,null,null,null,null,null,null,null,null,null,null,null,null,null,null,null,null,null,null,null,0]
[1349,"Farm Hounds (*)","Y",null,1,null,null,null,null,null,null,null,null,null,null,null,null,null,null,null,null,null,1,null,null,null,null,null,null,1,null,null,null,null,null,null,null,null,null,null,null,null,null,null,null,null,1]
[3439,"Farmina Pet Food","Y",null,1,null,null,null,null,null,null,null,null,null,null,null,null,null,null,null,null,1,1,null,null,null,null,1]
[3603,"Farmland Traditions (Hillside Farms)","Y",null,1,null,null,null,null,null,null,null,0,0,null,0,0,0,0,0,0,0,1,0,0,0,0,0,0,1,0,0,0,0,0,0,0,0,0,0,0,0,0,0,0,null,0,0,0,0,0,0,0,0]
[4774,"Feroz - Urban Pet Fashion (*)","Y",null,null,1,null,null,null,null,null,null,null,null,null,null,null,null,null,null,null,1,1,null,1,1]
[5439,"Fetch for Pets","Y",null,null,null,null,null,null,null,null,null,0,0,null,0,null,null,0,1,0,1,1,0,1,1,0,0,0,1,0,1,0,0,0,0,0,1,0,0,0,0,0,1,1,null,1,0,1,1,1,1,1,1]
[4909,"FetchFind","Y",null,null,null,null,null,null,null,null,null,null,null,1]
[6024,"FiberCore, LLC","Y",null,null,null,null,null,null,null,null,null,0,0,null,0,0,0,1,1,0,null,null,0,null,null,null,null,null,null,null,null,null,null,null,null,null,null,null,null,null,null,null,null,null,null,null,0,0,0,0,0,0,0]
[6049,"Fido Inc.","Y",null,null,null,null,null,null,null,null,null,0,0,null,0,0,0,0,0,0,null,1,0,0,0,0,0,0,1,0,1,0,0,0,0,0,0,0,0,0,0,0,0,0,null,0,0,0,0,0,0,0,0]
[4071,"Fidobiotics","Y",null,null,null,null,null,null,1,null,null,0,0,null,0,0,0,0,0,0,1,1,0,0,0,0,0,0,0,0,0,0,0,0,0,0,0,0,0,0,0,0,0,0,null,1,0,0,0,0,0,0,0]
[7852,"FieldStack","Y",null,null,null,null,null,null,null,null,null,null,null,1]
[6310,"First Saturday Lime","Y",null,null,null,null,null,null,null,null,null,null,null,null,1]
[3747,"FirstMate Pet Foods","Y",null,1,null,null,null,null,null,null,null,null,null,null,null,null,null,null,null,null,1,1,null,null,null,null,1,null,1]
[5225,"Fish Mart, Inc. ","Y",null,null,null,null,null,null,null,null,null,null,1,null,null,1,1,1,1,null,null,null,null,null,null,null,null,null,null,null,null,null,null,null,null,null,null,null,null,null,null,null,null,null,null,null,null,null,null,null,null,null,null,null,0]
[5146,"Flex Plus Pak","Y",null,null,null,null,null,null,null,null,null,null,null,1,null,null,null,null,null,null,1,1,null,null,null,null,1,null,1]
[7262,"Fly-Lid (*)","Y",null,null,null,null,null,null,null,null,1,null,null,null,1]
[1935,"Forever Stainless Steel","Y",null,null,null,null,null,1,null,null,null,null,null,1,null,null,null,null,null,null,null,1,null,null,null,null,null,null,null,null,null,null,null,null,null,null,null,null,null,null,null,null,null,null,null,null,null,1]
[5225,"Four Paws Products Ltd.","Y",null,null,null,null,null,null,null,null,null,null,null,null,null,null,null,null,null,null,1,1,null,null,1,null,null,null,null,null,null,null,null,null,null,1,null,1,1,null,null,null,null,null,null,1,1,1,1,1,1,1,1,null,0]
[7760,"Freedom Crate, LLC","Y",null,null,null,null,null,null,null,null,null,null,null,null,null,null,null,null,null,null,null,1,null,null,null,null,null,null,null,null,null,null,null,null,null,null,null,null,1,null,null,null,null,null,null,null,null,null,null,null,null,null,null,null,0]
[3404,"Freely Pet (*)","Y",null,1,null,null,null,null,null,null,null,null,null,null,null,null,null,null,null,null,1,1,null,null,null,null,1,null,null,null,null,null,null,null,null,null,null,null,null,null,null,null,null,null,null,1]
[1331,"Fresh ‘n Clean by Pet-Ag, Inc.","Y",null,null,null,null,null,1,null,null,null,null,null,null,null,null,null,null,null,null,1,1,null,null,null,null,null,null,null,null,null,null,null,null,null,null,null,null,null,null,null,null,null,null,null,1,1,null,1]
[7365,"Fresh Mink Pets (*)","Y",null,null,null,null,null,null,null,null,1,null,null,null,null,null,null,null,null,null,1,1,null,null,null,null,null,null,null,null,null,null,null,null,null,null,null,null,null,null,null,null,null,null,null,null,null,null,null,1]
[7415,"Fresh-Lock (*)","Y",null,null,null,null,null,null,null,null,null,null,null,1,null,null,null,null,null,null,1,1,null,null,null,null,1,null,1]
[1448,"From The Field LLC","Y",null,1,null,null,null,null,null,null,null,null,null,null,null,null,null,null,null,null,1,1,null,null,null,null,null,null,null,null,1,null,1]
[4039,"Fromm Family Foods","Y",null,null,null,null,null,null,null,null,null,0,0,null,0,0,0,0,0,0,1,1,0,0,0,0,1,0,1,0,0,0,0,0,0,0,0,0,0,0,0,0,0,0,null,0,0,0,0,0,0,0,0]
[6030,"FURminator, Inc.","Y",null,null,null,null,null,null,null,null,null,null,null,null,null,null,null,null,null,null,1,1,null,null,null,null,null,null,null,null,null,null,null,null,null,null,null,null,null,null,null,null,null,null,null,null,null,1,1]
[7564,"FurZapper (*)","Y",null,null,null,null,null,null,null,null,1,null,null,null,null,null,null,null,null,null,1,1,null,null,null,null,null,null,null,null,null,null,null,null,null,null,null,null,null,null,null,null,null,null,null,null,null,1]
[5170,"Gaia Enterprises, Inc. (*)","Y",null,null,null,null,null,null,null,null,null,null,null,null,1,null,null,null,null,null,null,1]
[1631,"Geib Buttercut Shears","Y",null,null,null,null,null,1,null,null,null,0,0,1,0,0,0,0,0,0,0,1,0,0,0,0,0,0,0,0,0,0,0,0,0,0,0,0,0,0,0,0,0,0,null,0,0,1,0,0,0,0,0,0,0]
[6308,"General Distributing & Sales Co.","Y",null,null,null,null,null,null,null,null,null,null,1,null,null,null,null,null,null,null,1,1,null,null,1,null,null,null,null,null,null,null,null,null,null,null,null,null,null,null,null,null,null,null,null,1,1,null,1]
[7108,"Genie's Therapeutics (*)","Y",null,null,null,null,null,null,null,null,null,null,null,null,null,null,null,null,null,null,null,1,null,null,null,null,null,null,null,null,null,null,null,null,null,null,null,null,null,null,null,null,null,null,1,1,null,null,null,null,null,null,null,null,0]
[1544,"GIOVANNI","Y",null,1,null,null,null,null,null,null,null,null,null,null,null,null,null,null,null,null,1,1,null,null,null,null,null,null,null,null,null,null,null,null,null,null,null,null,null,null,null,null,null,null,null,null,null,null,1,null,1,null,null,1]
[3309,"Global Animal Partnership (*)","Y",null,1,null,null,null,null,null,null,null,1,null,null,null,null,null,null,null,null,null,null,null,null,null,null,null,null,null,null,null,null,null,null,null,null,null,null,null,null,null,null,null,null,null,null,null,null,null,null,null,null,null,0]
[5619,"GlobalOne Pet, Inc.","Y",null,null,null,null,null,null,null,null,null,null,null,null,null,null,null,null,null,null,null,1,null,null,null,null,null,null,1,null,null,null,null,null,null,null,null,null,null,null,null,null,null,null,null,null,null,null,null,null,null,null,null,null,0]
[6030,"GloFish","Y",null,null,null,null,null,null,null,null,null,null,null,null,null,1,null,null,null,null,null,null,null,null,null,null,null,null,null,null,null,null,null,null,null,null,null,null,null,null,null,null,null,null,null,null,null,null,null,null,null,null,null,0]
[3724,"GoGo Pet Products","Y",null,1,null,null,null,null,null,null,null,null,null,null,null,null,null,null,null,null,null,1,null,null,1,null,null,1,1,1,null,null,null,null,null,null,null,null,null,null,null,null,null,null,null,null,null,1,null,null,null,1,1]
[4553,"Gold Paw Series","Y",null,null,null,null,null,null,null,null,null,0,0,null,0,0,0,0,0,0,1,1,0,1,1,0,0,0,0,0,0,0,0,0,0,0,0,0,0,0,0,0,0,0,null,0,0,0,0,0,0,0,0,0]
[4370,"Goli Design","Y",null,null,null,null,null,null,1,null,null,null,null,null,null,null,null,null,null,null,1,1,null,null,1,1,null,null,null,null,1]
[6349,"Gooby","Y",null,null,null,null,null,null,null,null,null,null,null,null,null,null,null,null,null,null,null,1,null,1,1]
[6030,"Good ‘n’ Fun","Y",null,null,null,null,null,null,null,null,null,null,null,null,null,null,null,null,null,null,null,1,null,null,null,null,null,null,1,1]
[6030,"Good ‘n’ Tasty","Y",null,null,null,null,null,null,null,null,null,null,null,null,null,null,null,null,null,null,null,1,null,null,null,null,null,null,1,null,null,null,null,null,null,null,null,null,null,null,null,null,null,null,null,null,null,null,null,null,null,null,null,1,0]
[5112,"Good L Corp","Y",null,null,null,null,null,null,null,null,null,0,0,1,null,0,0,0,0,0,0,null,0,0,0,0,0,0,0,0,0,0,0,0,0,0,0,0,null,0,0,0,0,0,null,0,0,0,0,0,0,0,0,null,0]
[6556,"Goo-eez","Y",null,null,null,null,null,null,null,null,null,null,null,null,null,null,null,null,null,null,null,1,null,1]
[1545,"Got Pee?","Y",null,1,null,null,null,null,null,null,null,null,null,null,null,null,null,null,null,null,1,1,null,null,null,null,null,null,null,null,null,null,null,null,null,null,null,null,null,null,null,null,null,null,null,null,null,null,null,1,null,null,null,0]
[5869,"GoughNuts Inc.","Y",null,null,null,null,null,null,null,null,null,null,null,null,null,null,null,null,null,null,null,1,null,null,null,null,null,null,null,null,1]
[3631,"Grandma Lucy's","Y",null,1,null,null,null,null,null,null,null,0,0,null,0,0,0,0,0,0,1,1,0,0,0,0,1,0,1,0,0,0,0,0,0,0,0,0,0,0,0,0,0,0,null,0,0,0,0,0,0,0,0]
[5855,"Grandma Mae's Country Naturals/RawTernative","Y",null,null,null,null,null,null,null,null,null,0,0,null,0,0,0,0,0,0,1,1,0,0,0,0,1,0,1,0,0,0,0,0,0,0,0,0,0,0,0,0,0,0,null,0,0,0,0,0,0,0,0,null,0]
[6323,"Great Shapes Collagen Dog Chews","Y",null,null,null,null,null,null,null,null,null,null,null,null,null,null,null,null,null,null,null,1,null,null,null,null,null,null,1]
[3503,"Green Coast Pet","Y",null,1,null,null,null,null,null,null,null,null,null,null,null,null,null,null,null,null,1,1,null,null,null,null,null,null,1,null,null,null,null,null,null,null,null,null,null,null,null,null,null,null,1,1]
[1540,"Groomer's Goop","Y",null,null,null,null,null,1,null,null,null,0,0,1,0,0,0,0,0,1,1,1,0,0,0,0,0,0,0,0,0,0,0,0,0,0,0,0,null,0,0,0,0,0,null,0,0,null,1,1,1,0,0]
[3653,"Guardian Pet Food Company, Inc (*)","Y",null,1,null,null,null,null,null,null,null,null,null,null,null,null,null,null,null,null,null,1,null,null,null,null,1,null,1]
[6639,"H&C Animal Health","Y",null,null,null,null,null,null,null,null,null,null,null,null,null,null,null,null,null,null,1,1,null,null,1,null,null,null,1,null,null,null,null,null,null,null,null,null,null,null,null,null,null,1,null,1,1,null,null,null,1]
[1476,"Habco Manufacturing Inc. (*)","Y",null,1,null,null,null,null,null,null,null,null,null,1]
[4225,"Hagen Group","Y",null,null,null,null,null,null,null,null,null,0,0,null,0,1,1,1,1,0,1,1,0,1,1,1,null,1,1,null,1,0,1,1,1,1,1,0,1,1,null,1,1,1,null,0,1,1,1,1,1,1,1,null,0]
[7209,"Hangman Products, Inc.","Y",null,null,null,null,null,null,null,null,null,null,null,null,null,null,null,null,null,null,1,null,null,null,null,null,null,null,null,null,null,null,null,1,1]
[5517,"Happy Habitats (*)","Y",null,null,null,null,null,null,null,null,null,null,null,null,null,null,null,null,1]
[7519,"Happy Hen Treats","Y",null,null,null,null,1,null,null,null,null,null,null,null,null,null,null,1]
[1681,"Happy Howie's, Inc","Y",null,1,null,null,null,null,null,null,null,null,null,null,null,null,null,null,null,null,null,1,null,null,null,null,null,null,1]
[4271,"HAPPYBOND (*)","Y",null,null,null,null,null,null,1,null,null,null,null,null,null,null,null,null,null,null,null,1,null,null,null,null,1,1,1,null,null,null,null,null,null,null,null,null,null,null,null,null,null,null,null,1]
[4767,"Haute Diggity Dog","Y",null,null,1,null,null,null,null,null,null,null,null,null,null,null,null,null,null,null,null,1,null,null,null,null,null,null,null,null,1]
[4168,"Healers Petcare, inc","Y",null,null,null,null,null,null,1,null,null,null,null,null,null,null,null,1,1,null,1,1,null,1,null,null,null,null,1,null,null,null,null,null,null,null,null,null,null,null,null,null,null,null,null,1,null,null,1]
[6611,"Health Extension Pet Care","Y",null,null,null,null,null,null,null,null,null,null,null,null,null,null,null,null,null,null,1,1,null,null,null,null,1,null,1,null,null,null,null,null,null,null,null,null,null,null,null,null,null,null,null,1,null,null,1,1,null,null,null,0]
[1229,"Health Technology Professional Products ","Y",null,null,null,null,null,1,null,null,null,null,null,1,null,null,null,null,null,null,1,1,null,null,null,null,null,null,null,null,null,null,null,null,null,null,null,null,null,null,null,null,null,null,null,null,null,1,1,1,null,null,1]
[4069,"Healthy Hemp Pet Company","Y",null,null,null,null,null,null,1,null,null,null,null,null,null,null,null,null,null,1,1,1,null,null,null,null,null,null,1,null,null,null,null,null,null,null,null,null,null,null,null,null,null,null,null,1,null,null,null,null,null,null,null,0]
[4166,"Healthy Paws Herbal Labs (*)","Y",null,null,null,null,null,null,1,null,null,null,null,null,null,null,null,null,null,null,1,1,null,null,null,null,null,null,null,null,null,null,null,null,null,null,null,null,null,null,null,null,null,null,1,1,null,null,null,null,null,null,null,0]
[5031,"Healthy Pet","Y",null,null,null,null,null,null,null,null,null,0,0,null,0,0,0,null,1,0,1,1,0,0,0,0,0,0,0,0,0,0,0,0,0,0,0,0,0,0,0,1,null,0,null,0,0,0,0,0,0,null,0]
[3221,"Healthy Shores","Y",null,1,null,null,null,null,null,null,null,null,null,null,null,null,null,null,null,null,1,1,null,null,null,null,1,null,1]
[5963,"Heather's Heros","Y",null,null,null,null,null,null,null,null,null,null,null,null,null,null,null,null,null,null,null,1,null,null,1]
[4876,"Heka Pet","Y",null,null,1,null,null,null,null,null,null,null,null,null,null,null,null,null,null,null,1,1,null,null,1,null,null,null,null,null,null,null,null,null,null,null,null,null,1,null,null,null,null,null,null,null,null,null,null,null,null,null,1]
[1748,"HÉLOÏSE LABORATOIRE INC","Y",null,1,null,null,null,null,null,null,null,null,null,null,null,null,null,null,null,1,null,1,null,null,null,null,null,null,null,null,null,null,null,null,null,null,null,null,null,null,null,null,null,null,null,1,1]
[3613,"Hempvet","Y",null,1,null,null,null,null,null,null,null,null,null,null,null,null,null,null,null,null,1,1,null,null,null,null,null,null,null,null,null,null,null,null,null,null,null,null,null,null,null,null,null,null,1,1,1]
[7659,"Hey Karen! (*)","Y",null,null,null,null,null,null,null,null,null,null,null,null,null,null,null,null,null,null,1,null,null,null,null,null,null,null,null,null,null,null,null,null,null,null,null,null,null,null,null,1,null,null,null,null,null,null,null,null,null,null,null,null,0]
[4827,"Higgins/Versele-Laga","Y",null,null,null,null,null,null,null,null,null,0,0,null,0,0,0,1,1,0,0,0,0,0,0,0,0,0,0,0,0,0,0,0,0,0,0,0,0,0,0,0,0,0,null,0,0,0,0,0,0,0,0]
[6149,"High Hopes for Pets","Y",null,null,null,null,null,null,null,null,null,null,null,null,null,null,null,null,null,null,null,1,null,null,null,null,1,null,1]
[1752,"Highwave / Springer","Y",null,1,null,null,null,null,null,null,null,null,null,null,null,null,null,null,null,null,null,1,null,null,null,null,null,1]
[6625,"Hikari Sales USA, Inc.","Y",null,null,null,null,null,null,null,null,null,0,0,null,0,1,1,0,0,0,0,0,0,0,0,0,0,0,0,0,0,0,0,0,0,0,0,0,0,0,0,0,0,0,null,0,0,0,0,0,0,0,0,0,0]
[1378,"Himalayan Dog Chew LLC","Y",null,1,null,null,null,null,null,null,null,0,0,null,0,0,0,0,0,0,null,1,0,0,0,0,0,0,1,0,1,0,0,0,0,0,1]
[5255,"Hip Doggie Inc.","Y",null,null,null,null,null,null,null,null,null,null,null,null,null,null,null,null,null,null,null,1,null,1,1,null,null,null,null,null,1,null,null,null,null,null,1,null,1]
[5610,"Hippo Sak / Crown Poly, Inc.","Y",null,null,null,null,null,null,null,null,null,null,null,null,null,null,null,null,null,null,1,1,null,null,null,null,null,null,null,null,null,null,null,null,null,null,null,null,null,null,null,null,1,null,null,null,null,null,null,null,null,null,1]
[7049,"HolistaPet","Y",null,null,null,null,null,null,null,null,null,null,null,null,null,null,null,null,null,1,1,1,null,null,null,null,null,null,1,null,null,null,null,null,null,null,null,null,null,null,null,null,null,null,1,1]
[7355,"HomeoPet","Y",null,null,null,null,null,null,null,null,null,0,0,null,0,0,0,1,1,1,1,1,0,0,0,0,0,0,0,0,0,0,0,0,0,0,0,0,0,0,0,0,0,1,null,1,0,0,0,0,0,0,0,0,0]
[1550,"Honey I'm Home","Y",null,1,null,null,null,null,null,null,null,null,null,null,null,null,null,null,null,null,null,1,null,null,null,null,null,null,1]
[3862,"HoneyCure","Y",null,1,null,null,null,null,null,null,1,null,null,null,null,null,null,null,null,1,1,1,null,null,null,null,null,null,null,null,null,null,null,null,null,null,null,null,null,null,null,null,null,null,null,1]
[7713,"Hoovers Hatchery","Y",null,null,null,null,1,null,null,null,null,null,null,null,null,null,null,1]
[1570,"Hound & Gatos Pet Food","Y",null,1,null,null,null,null,null,null,null,null,null,null,null,null,null,null,null,null,1,1,null,null,null,null,1]
[5916,"HOUNDSCOOP®","Y",null,null,null,null,null,null,null,null,null,null,null,null,null,null,null,null,null,null,null,1,null,null,null,null,null,null,null,null,null,null,null,null,null,null,null,null,null,null,null,null,null,null,null,null,null,null,null,null,null,null,1,0]
[6154,"HPZ PET ROVER","Y",null,null,null,null,null,null,null,null,null,null,null,null,null,null,null,null,null,null,1,1,null,null,null,null,null,null,null,null,null,null,null,null,null,null,null,null,1,null,null,null,null,null,null,null,null,null,null,null,null,null,null,0,0]
[7467,"Huan (*)","Y",null,null,null,null,null,null,null,null,1,null,null,null,null,null,null,null,null,null,1,1,null,null,null,1,null,null,null,null,null,null,null,null,null,null,null,null,null,null,null,null,null,null,null,null,null,null,null,null,null,null,null,0,0]
[4119,"Huggle Hounds","Y",null,null,null,null,null,null,null,null,null,0,0,null,0,0,0,0,0,0,1,1,0,1,null,0,0,0,0,0,1,0,0,0,0,0,1,0,null,0,0,0,0,0,null,0,0,0,0,0,0,0,0]
[5461,"HumaneWatch","Y",null,null,null,null,null,null,null,1,null,1]
[1445,"IBPSA","Y",null,1,null,null,null,null,null,null,null,1,null,null,null,null,null,null,null,null,null,null,null,null,null,null,null,null,null,null,null,null,null,null,null,null,null,null,null,null,null,null,null,null,null,null,null,null,null,null,null,null,null,0,0]
[3813,"Icelandic+","Y",null,1,null,null,null,null,null,null,null,null,null,null,null,null,null,null,null,null,1,1,null,null,null,null,null,null,1,null,null,null,null,null,null,null,null,null,null,null,null,null,null,null,null,null,null,null,null,null,null,null,null,null,0]
[7315,"Icelandirect, Inc.","Y",null,null,null,null,null,null,null,null,null,null,null,1,null,null,null,null,null,null,1,1,null,null,null,null,null,null,1,null,null,null,null,null,null,null,null,null,null,null,null,null,null,null,null,1]
[7653,"iClean Dog Wash","Y",null,null,null,null,null,null,null,null,null,null,null,1,null,null,null,null,null,null,null,1,null,null,null,null,null,null,null,null,null,null,null,null,null,null,null,null,null,null,null,null,null,null,null,null,null,1]
[7515,"IHPP Pet Supplies (*)","Y",null,null,null,null,null,null,null,null,null,null,null,null,null,null,null,null,null,null,null,1,null,null,null,null,null,null,1]
[6661,"iMARC Engraving Systems","Y",null,null,null,null,null,null,null,null,null,0,0,1,1,0,0,0,0,1,1,1,0,0,null,1,0,0,0,0,0,0,0,0,0,0,0,0,0,0,0,0,0,0,null,0,0,0,0,0,0,0,0,0,0]
[5225,"IMS - Cadet Pet","Y",null,null,null,null,null,null,null,null,null,null,null,null,null,null,null,null,null,null,null,1,null,null,null,null,null,null,1,1,null,null,null,null,null,null,null,null,null,null,null,null,null,null,null,null,null,null,null,null,null,null,null,0]
[6339,"Inaba Foods (USA) Inc.","Y",null,null,null,null,null,null,null,null,null,null,null,null,null,null,null,null,null,null,1,1,null,null,null,null,1,null,1,null,null,null,null,null,null,null,null,null,null,null,null,null,null,null,null,null,null,null,null,null,null,null,null,null,0]
[4062,"InClover Research","Y",null,1,null,null,null,null,null,null,null,0,0,null,0,0,0,0,0,1,1,1,0,0,0,0,0,0,1,0,0,0,0,0,0,0,0,0,0,0,0,0,0,0,null,1,0,0,0,0,0,0,0]
[3964,"Indigenous Pet Products","Y",null,1,null,null,null,null,null,null,null,null,null,null,null,null,null,null,null,null,null,1,null,null,null,null,null,null,1,null,null,null,null,null,null,null,null,null,null,null,null,null,null,1,null,1]
[6424,"INDIPETS INC","Y",null,null,null,null,null,null,null,null,null,null,null,null,null,null,null,1,null,null,1,1,null,null,null,null,null,1,null,null,null,null,null,1]
[5617,"Injoya","Y",null,null,null,null,null,null,null,null,null,null,null,null,null,null,null,null,null,null,1,1,null,null,null,null,null,1,null,null,1]
[7654,"Instachew x Petkit","Y",null,null,null,null,null,null,null,null,null,null,null,null,null,null,null,null,null,null,1,1,null,null,1,null,null,1,null,null,1,null,null,null,null,null,1,null,1,1,null,1,1,null,null,null,null,null,null,1,null,null,1,null,0]
[6649,"Intersand","Y",null,null,null,null,null,null,null,null,null,null,null,null,null,null,null,null,null,null,1,null,null,null,null,null,null,null,null,null,null,null,null,null,null,null,null,null,null,null,null,1]
[5720,"Interzoo","Y",null,null,null,null,null,null,null,null,null,0,0,null,null,null,0,0,0,0,1,1,0,0,0,0,0,1,0,0,1,0,1,1,1,0,null,0,null,0,0,1,1,0,null,0,0,0,0,0,0,0,0]
[1744,"IV San Bernard USA","Y",null,1,null,null,null,null,null,null,null,null,null,1,null,null,null,null,null,1,1,1,null,null,null,null,null,null,null,null,null,null,null,null,null,null,null,null,null,null,null,null,null,null,null,1,1,1,1]
[3753,"JAC Pet Nutrition (*)","Y",null,1,null,null,null,null,null,null,null,null,null,null,null,null,null,null,null,null,1,1,null,null,null,null,null,null,1,null,null,null,null,null,null,null,null,null,null,null,null,null,null,null,null,1]
[7019,"Jack and Pup","Y",null,null,null,null,null,null,null,null,null,null,null,null,null,null,null,null,null,null,null,1,null,null,null,null,null,null,1]
[5210,"JBJ/Dennerle","Y",null,null,null,null,null,null,null,null,null,null,null,null,null,1]
[1152,"Jiminy's","Y",null,1,null,null,null,null,null,null,null,null,null,null,null,null,null,null,null,null,null,1,null,null,1,null,1,null,1]
[5310,"JM Cages & Reptiles ","Y",null,null,null,1,null,null,null,null,null,null,1,null,null,null,1]
[4879,"JoJo Modern Pets (*)","Y",null,null,1,null,null,null,null,null,null,null,null,null,null,null,null,null,null,null,null,1,null,null,1,null,null,1,null,null,1,null,null,null,null,null,1,null,null,1,null,null,null,null,null,null,null,null,null,null,null,null,1]
[6549,"Jolly Pets","Y",null,null,null,null,null,null,null,null,null,0,0,null,0,0,0,null,null,null,0,1,0,0,0,0,0,0,0,0,1,0,0,0,0,0,0,0,0,0,0,0,0,0,null,0,0,0,0,0,0,0,0]
[1452,"Jones Naturals LLC","Y",null,1,null,null,null,null,null,null,null,null,null,null,null,null,null,null,null,null,null,1,null,null,null,null,null,null,1]
[5225,"K & H Manufacturing","Y",null,null,null,null,null,null,null,null,null,0,0,null,0,1,0,1,1,null,1,1,0,0,0,0,0,1,0,0,1,0,0,1,1,0,1,0,1,1,null,0,0,0,null,null,0,0,0,0,0,0,0]
[7763,"K.C. Innovations L.L.C. (*)","Y",null,null,null,null,null,null,null,null,1,null,null,null,null,null,null,null,null,null,1,null,null,null,null,null,null,null,null,null,null,null,null,null,null,null,null,null,null,null,null,null,1]
[1052,"K9 Natural / Feline Natural","Y",null,1,null,null,null,null,null,null,null,0,0,null,0,0,0,0,0,0,1,1,0,0,0,0,1,null,1,0,0,0,0,0,0,0,0,0,0,0,0,0,0,0,null,1,0,0,0,0,0,0,0]
[7752,"K9 Sport Sack","Y",null,null,null,null,null,null,null,null,null,null,null,null,null,null,null,null,null,null,null,1,null,null,null,null,null,null,null,null,null,null,null,null,null,null,null,null,1,null,null,null,null,null,null,null,null,null,null,null,null,null,null,0]
[5507,"K9000 Dog Wash USA","Y",null,null,null,null,null,null,null,null,null,null,null,1,null,null,null,null,null,null,null,1,null,null,null,null,null,null,null,null,null,null,null,null,null,null,null,null,null,null,null,null,null,null,null,null,null,1]
[3859,"Kadenwood - Purity Preferred & EcoGen","Y",null,1,null,null,null,null,null,null,null,null,null,null,null,null,null,null,null,null,1,1,null,null,null,null,null,null,null,null,null,null,null,null,null,null,null,null,null,null,null,null,null,null,1,1]
[4977,"Kai & I","Y",null,null,1,null,null,null,null,null,null,null,null,null,null,null,null,null,null,null,null,1,null,null,1]
[4566,"Katie's Pet Products","Y",null,null,1,null,null,null,null,null,null,null,null,null,null,null,null,null,null,1,1,1,null,null,null,null,null,null,1,null,1,null,null,null,null,null,null,null,null,null,null,null,null,null,1,1]
[7866,"Katio • Dogio (*)","Y",null,null,null,null,null,null,null,null,1,null,null,null,null,null,null,null,null,null,1,1,null,null,null,null,null,null,null,null,null,null,null,null,null,null,null,null,null,null,null,null,1,null,null,null,null,null,null,null,null,null,1]
[5513,"Kawell USA","Y",null,null,null,null,null,null,null,null,null,null,null,null,null,null,null,null,null,1,null,1,null,null,null,null,null,null,null,null,null,null,null,null,null,null,null,null,null,null,null,null,null,null,null,1,null,null,1]
[5225,"Kaytee","Y",null,null,null,null,null,null,null,null,null,null,null,null,null,null,null,1,1,null,null,null,null,null,null,null,null,null,null,null,null,null,null,null,null,null,null,null,null,null,null,null,null,null,null,null,null,null,null,null,null,null,null,0]
[1337,"Kenchii Professional","Y",null,null,null,null,null,1,null,null,null,null,null,1,null,null,null,null,null,null,null,1,null,null,null,null,null,null,null,null,null,null,null,null,null,null,null,null,null,null,null,null,null,null,null,null,null,1]
[7139,"KENT PET GROUP","Y",null,null,null,null,null,null,null,null,null,0,0,null,0,0,0,null,null,null,1,null,0,0,0,0,null,0,null,0,0,0,0,0,0,0,0,0,0,0,0,1,null,0,null,0,0,0,0,0,0,0,0]
[1933,"Kim Laube & Co., Inc.","Y",null,null,null,null,null,1,null,null,null,null,null,1,null,null,null,null,null,1,1,1,null,null,null,null,null,null,null,null,null,null,null,null,null,null,null,null,null,null,null,null,null,null,null,null,null,1,1,null,null,null,null,0]
[5254,"King Wholesale Pet Supplies","Y",null,null,null,null,null,null,null,null,null,null,1,null,null,null,null,null,1,1,1,1,1,1,1,null,null,1,1,1,1,null,1,1,1,1,1,1,1,1,1,null,1,1,1,1,1,1,1,1,1,1,1]
[3705,"Kitty Sift","Y",null,1,null,null,null,null,null,null,null,null,null,null,null,null,null,null,null,null,1,null,null,null,null,null,null,null,null,null,null,null,null,null,null,null,null,null,null,null,null,1,1,null,null,null,null,null,null,null,null,null,null,null,0]
[7862,"Kitty Sift ","Y",null,null,null,null,null,null,null,null,1,null,null,null,null,null,null,null,null,null,1,null,null,null,null,null,null,null,null,null,null,null,null,null,null,null,null,null,null,null,null,1,1]
[4678,"Klippo Pet Inc","Y",null,null,1,null,null,null,null,null,null,null,null,null,null,null,null,null,null,null,null,1,null,1,1,null,null,null,null,null,null,null,null,null,null,null,1,null,null,null,null,null,null,null,null,null,null,null,null,null,null,null,null,0]
[4253,"KND Labs","Y",null,null,null,null,null,null,1,null,1,null,null,1,null,null,null,null,null,null,1,1,null,null,null,null,null,null,null,null,null,null,null,null,null,null,null,null,null,null,null,null,null,null,1,1,null,null,null,null,null,null,null,0]
[5367,"KOCHO","Y",null,null,null,null,null,null,null,null,null,null,null,null,null,null,null,null,null,null,null,1,null,null,null,null,null,null,null,null,null,null,null,null,null,null,null,null,null,null,null,null,null,null,null,null,null,null,null,null,null,1,null,null,0]
[6739,"Koowill, Inc. (*)","Y",null,null,null,null,null,null,null,null,null,null,null,null,null,null,null,null,null,null,null,1,null,null,null,null,null,null,1,null,null,null,null,null,null,null,null,null,null,null,null,null,null,1]
[5216,"KORDON, LLC","Y",null,null,null,null,null,null,null,null,null,null,null,null,null,1]
[6430,"Kradle (*)","Y",null,null,null,null,null,null,null,null,null,null,null,null,null,null,null,null,null,null,null,1,null,null,null,null,null,null,1,null,null,null,null,null,null,null,null,null,null,null,null,null,null,null,1,1]
[7419,"Kruse (*)","Y",null,null,null,null,null,null,null,null,null,null,null,null,null,null,null,1,1,1,1,1,null,null,null,null,1,null,1]
[1836,"Ladybird Line","Y",null,null,null,null,null,1,null,null,null,null,null,1,null,null,null,null,null,null,null,1,null,1,null,null,null,null,null,null,null,null,null,null,null,null,null,null,null,null,null,null,null,null,null,null,null,1]
[4663,"Lazarus Naturals","Y",null,null,1,null,null,null,null,null,null,null,null,null,null,null,null,null,null,null,1,1,null,null,null,null,null,null,1,null,null,null,null,null,null,null,null,null,null,null,null,null,null,null,1,1]
[7265,"Leashball","Y",null,null,null,null,null,null,null,null,1,null,null,null,null,null,null,null,null,null,null,1,null,null,1,null,null,null,null,null,1,null,null,null,null,null,null,null,null,null,null,null,null,null,null,null,null,null,null,null,null,null,null,0]
[5017,"Lennox Intl","Y",null,null,null,null,null,null,null,null,null,0,0,null,0,0,0,0,0,0,1,1,0,0,0,0,0,0,1,1,0,0,0,0,0,0,0,0,0,0,0,1,0,0,null,0,0,0,0,0,0,0,0,null,0]
[5061,"LickiMat","Y",null,null,null,null,null,null,null,null,null,null,null,null,null,null,null,null,null,null,1,1,null,null,null,null,null,1,1]
[4907,"Life Imprint (*)","Y",null,null,null,null,null,null,null,null,null,null,null,null,1]
[3869,"LIQ","Y",null,1,null,null,null,null,null,null,null,null,null,null,null,null,null,null,null,null,1,1,null,null,null,null,null,null,1,null,null,null,null,null,null,null,null,null,null,null,null,null,null,null,null,1]
[7715,"Little Farmer Products / Vivotein","Y",null,null,null,null,1,null,null,null,null,null,null,null,null,1,null,1]
[1573,"Live Pee Free! by Noble Ion","Y",null,1,null,null,null,null,null,null,null,null,null,null,null,null,null,null,null,null,1,1,null,null,null,null,null,null,null,null,null,null,null,null,null,null,null,null,null,null,null,null,null,null,null,null,null,null,null,1,null,null,null,0]
[5421,"LiveAquaria","Y",null,null,null,1,null,null,null,null,null,null,1,null,null,1]
[1169,"LIX (*)","Y",null,1,null,null,null,null,null,null,null,null,null,null,null,null,null,null,null,1,1,1,null,null,null,null,null,null,1,null,null,null,null,null,null,null,null,null,null,null,null,null,null,null,1,1,null,null,null,null,null,null,null,1]
[7630,"Logical Brands","Y",null,null,null,null,null,null,null,null,null,null,null,null,null,null,null,null,null,null,null,1,null,null,null,null,null,null,null,null,1]
[7010,"Long Dog Apparel","Y",null,null,null,null,null,null,null,null,null,null,null,null,1]
[3719,"Lord Jameson","Y",null,1,null,null,null,null,null,null,null,null,null,null,null,null,null,null,null,null,null,1,null,null,null,null,null,null,null,null,null,null,null,null,null,null,null,null,null,null,null,null,null,null,null,1]
[1145,"Lotus Pet Foods","Y",null,1,null,null,null,null,null,null,null,0,0,null,0,0,0,0,0,0,1,1,0,0,0,0,1,0,null,0,0,0,0,0,0,0,0,0,0,0,0,0,0,0,null,0,0,0,0,0,0,0,0]
[7554,"Lounge sponsored by Artistree","Y",null,null,null,null,null,null,null,null,null,null,null,1,1]
[4476,"LoveThyBeast","Y",null,null,1,null,null,null,null,null,null,null,null,null,null,null,null,null,null,null,1,1,null,1,1,null,null,1,1,null,1,null,null,null,1,null,1,null,1,null,null,null,null,1,null,1,1,1,1,1,1,null,1,0]
[4853,"Loving Pets","Y",null,null,null,null,null,null,null,null,null,0,0,null,0,1,0,0,0,0,1,1,0,0,0,0,0,1,1,1,0,0,0,0,0,0,0,0,0,0,0,0,0,0,null,0,0,0,0,0,0,0,0]
[1634,"Loyalty Pet Products","Y",null,null,null,null,null,1,null,null,null,null,null,1,null,null,null,null,null,null,1,1,null,null,null,null,null,null,null,null,null,null,null,null,null,null,null,null,null,null,null,null,null,null,null,null,null,1]
[7014,"Lucky Pup","Y",null,null,null,null,null,null,null,null,null,null,null,null,null,null,null,null,null,null,null,1,null,null,null,null,null,null,null,null,null,null,null,null,null,null,null,null,null,null,null,null,null,null,null,1]
[4365,"Luna Blue","Y",null,null,1,null,null,null,null,null,null,0,0,null,0,0,0,0,0,0,0,1,0,1,1,0,0,0,0,0,1,0,0,0,0,0,1,0,0,0,0,0,0,0,null,0,0,0,0,0,0,0,0]
[4925,"M Pet Group","Y",null,null,null,null,null,null,null,null,null,null,null,null,null,null,null,null,null,null,null,1,null,null,null,null,null,null,1]
[6449,"Mammoth Pet Products","Y",null,null,null,null,null,null,null,null,null,0,0,null,null,0,0,null,null,null,1,1,0,0,0,0,0,0,null,0,1,0,0,0,0,0,1,0,0,0,0,0,0,null,null,0,0,0,0,0,0,0,0]
[6030,"Marineland","Y",null,null,null,null,null,null,null,null,null,null,null,null,null,1]
[2074,"Marini CIA","Y",null,1,null,null,null,null,null,null,null,null,null,null,null,null,null,null,null,null,1,1,null,null,null,null,1,null,1]
[4125,"Mars Petcare","Y",null,null,null,null,null,null,null,null,null,0,0,null,0,0,0,0,null,0,1,1,0,0,0,0,1,0,1,0,0,0,0,0,0,0,0,0,0,0,0,0,0,1,null,null,0,0,0,0,0,0,0]
[1336,"Mason, a Midmark Company","Y",null,null,null,null,null,1,null,null,null,null,null,1,null,null,null,null,null,null,1,1,null,null,null,null,null,null,null,null,null,null,null,null,null,null,null,null,1,null,1,null,null,null,null,null,null,1]
[4319,"Maximum Bully","Y",null,null,null,null,null,null,null,null,null,null,null,null,null,null,null,null,null,null,null,1,null,null,null,null,1,null,null,null,null,null,null,null,null,null,null,null,null,null,null,null,null,null,null,1]
[5255,"Max's Closet","Y",null,null,null,null,null,null,null,null,null,null,null,null,null,null,null,null,null,null,null,1,null,1,null,null,null,null,null,null,null,null,null,null,null,null,null,null,null,null,null,null,null,null,null,null,null,null,null,null,null,1]
[6239,"McLovin's Pet (*)","Y",null,null,null,null,null,null,null,null,null,null,null,null,null,null,null,null,null,null,null,1,null,null,null,null,1,null,1]
[4360,"MEDTERRA","Y",null,null,null,null,null,null,1,null,null,null,null,null,null,null,null,null,null,null,1,1,null,null,null,null,null,null,1,null,null,null,null,null,null,null,null,null,null,null,null,null,null,null,1,1]
[7462,"Mella Pet Care (*)","Y",null,null,null,null,null,null,null,null,1,null,null,null,null,null,null,null,null,null,1,1,null,null,null,null,null,null,null,null,null,null,null,null,null,null,null,null,null,null,null,null,null,null,null,1]
[4660,"Mendota Pet","Y",null,null,1,null,null,null,null,null,null,0,0,null,0,0,0,0,0,0,1,1,0,1,1,0,0,1,1,0,0,0,0,0,0,0,0,0,0,0,0,0,0,0,null,1,0,0,1,0,0,0,0]
[7254,"Meowijuana® & Doggijuana®","Y",null,null,null,null,null,null,null,null,null,null,null,null,1,null,null,null,null,null,1,1,null,null,null,null,null,null,1,null,1,null,1,null,null,null,null,null,null,null,null,null,null,null,1,1]
[7224,"Merrick Pet Care","Y",null,null,null,null,null,null,null,null,null,0,0,null,0,0,0,0,0,0,1,1,0,0,0,0,1,0,1,null,null,0,0,0,0,0,0,0,0,0,0,0,0,0,null,0,0,0,0,0,0,0,0]
[4461,"Metro Paws LLC.","Y",null,null,1,null,null,null,null,null,null,0,0,null,1,0,0,0,0,0,1,1,0,0,0,0,0,0,0,0,1,0,0,0,0,0,0,0,0,0,0,0,0,0,null,0,0,0,0,0,1,1,1]
[6439,"Mid America Pet Food","Y",null,null,null,null,null,null,null,null,null,null,null,null,null,null,null,null,null,null,1,1,null,null,null,null,1,null,1]
[6219,"Middleby Food Processing","Y",null,null,null,null,null,null,null,null,null,null,null,1,null,null,null,null,null,null,1,1,null,null,null,null,1]
[5625,"Midwest Homes For Pets","Y",null,null,null,null,null,null,null,null,null,0,0,null,0,0,0,1,1,0,1,1,0,0,0,0,0,1,0,0,0,0,0,1,1,0,1,1,1,1,1,0,0,0,null,0,0,1,0,0,0,1,1,1]
[4639,"Midwestern Pet Foods","Y",null,null,null,null,null,null,null,null,null,null,null,null,null,null,null,null,null,null,1,1,null,null,null,null,1,null,1]
[5757,"Miller Manufacturing","Y",null,null,null,null,null,null,null,null,null,null,null,null,null,null,null,1,1,1,null,1,null,null,null,null,null,1,null,null,null,null,null,null,null,null,1,null,1,1,1,null,null,null,null,null,null,null,null,null,null,null,1]
[7267,"Milunova LLC","Y",null,null,null,null,null,null,null,null,1,null,null,null,null,null,null,null,null,null,null,1,null,null,null,null,null,null,null,null,1,null,null,null,null,null,null,null,null,null,null,null,null,null,null,null,null,null,null,null,null,null,1]
[1157,"Minus Forty Technologies","Y",null,1,null,null,null,null,null,null,null,0,0,1,0,0,0,0,0,0,0,0,0,0,0,0,0,0,0,0,0,0,0,0,0,0,0,0,0,0,0,0,0,0,null,0,0,0,0,0,0,0,0]
[3939,"Miracle Pet","Y",null,1,null,null,null,null,null,null,null,0,0,null,0,0,1,1,1,1,1,1,0,0,1,0,1,0,1,0,0,0,1,0,0,null,0,0,null,0,null,0,0,1,null,1,1,1,1,0,1,0,0]
[7208,"Missing Link®","Y",null,null,null,null,null,null,null,null,null,null,null,null,null,null,null,1,null,1,1,1,null,null,null,null,null,null,1,null,null,null,null,null,null,null,null,null,null,null,null,null,null,1,null,1,null,null,null,null,null,null,null,null,0]
[5211,"Mistking/Jungle Hobbies","Y",null,null,null,null,null,null,null,null,null,null,null,null,null,null,1,null,null,1]
[7414,"Mondi","Y",null,null,null,null,null,null,null,null,null,null,null,1,null,null,null,null,null,null,1,1,null,null,null,null,1,null,1]
[5016,"Morning Bird (*)","Y",null,null,null,null,null,null,null,null,null,null,null,null,null,null,null,1,null,null,null,null,null,null,null,null,null,null,null,null,null,null,null,null,null,null,null,null,null,null,null,null,null,null,null,null,null,null,null,null,null,null,null,1]
[1675,"Morris Packaging","Y",null,1,null,null,null,null,null,null,null,null,null,1,null,null,null,null,null,null,1,1,null,null,null,null,1,null,1]
[5047,"Mosaic® By Boston Treat House","Y",null,1,null,null,null,null,null,null,null,null,null,null,null,null,null,null,null,null,null,1,null,null,null,null,null,null,1,null,null,null,null,null,null,null,null,null,null,null,null,null,null,null,null,1,null,null,null,null,null,null,null,0]
[1973,"Moso Natural (*)","Y",null,1,null,null,null,null,null,null,null,null,null,null,null,null,null,null,null,null,1,1,null,null,null,null,null,null,null,null,null,null,null,null,null,null,null,null,null,null,null,null,null,null,null,null,null,null,null,1]
[3204,"mount ara™","Y",null,1,null,null,null,null,null,null,null,null,null,null,null,null,null,null,null,null,null,1,null,null,null,null,null,null,1,null,1,null,null,null,null,null,null,null,null,null,null,null,null,null,1,1,null,null,null,null,null,null,null,0]
[3418,"Mountain Wild","Y",null,1,null,null,null,null,null,null,null,null,null,null,null,null,null,null,null,null,null,1,null,null,null,null,null,null,1]
[1852,"Muenster Milling Company","Y",null,1,null,null,null,null,null,null,null,null,null,null,null,1,null,1,null,1,1,1,null,null,null,null,1,null,1,null,null,null,null,null,null,null,null,null,null,null,null,null,null,null,null,1]
[6139,"Multipet International, Inc.","Y",null,null,null,null,null,null,null,null,null,0,0,null,1,null,0,null,null,null,1,1,0,0,0,0,0,null,null,null,1,0,1,1,0,0,null,0,null,0,0,0,0,0,null,0,0,null,0,0,1,0,1,1,1]
[7261,"Muridae, Inc. - Maker of Mouser Pet Food (*)","Y",null,null,null,null,null,null,null,null,null,null,null,null,null,null,null,null,null,null,1,null,null,null,null,null,1,null,null,null,null,null,null,null,null,null,null,null,null,null,null,null,null,null,null,null,null,null,null,null,null,null,null,0]
[4267,"MuttGut (*)","Y",null,null,null,null,null,null,1,null,null,null,null,null,null,null,null,null,null,null,null,1,null,null,null,null,null,null,null,null,null,null,null,null,null,null,null,null,null,null,null,null,null,null,null,1]
[4821,"My Leash Lock (*)","Y",null,null,null,null,null,null,null,null,null,null,null,null,null,null,null,null,null,null,null,1,null,null,1]
[5816,"MYECOPET (*)","Y",null,null,null,null,null,null,null,null,null,null,null,null,null,null,null,null,null,null,null,1,null,null,null,null,null,null,null,null,null,null,null,null,null,null,null,null,null,null,null,null,null,null,null,null,null,null,null,null,null,null,1]
[4831,"MyFamily USA","Y",null,null,null,null,null,null,null,null,null,null,null,1,null,null,null,null,null,null,1,1,null,null,1,1,null,null,null,null,null,null,null,null,null,null,null,null,null,null,null,null,null,null,null,null,null,null,null,null,null,null,null,null,0]
[5568,"National Animal Interest Alliance (NAIA)","Y",null,null,null,null,null,null,null,1,null,1,null,null,null,null,null,null,null,null,null,null,null,null,null,null,null,null,null,null,null,null,null,null,null,null,null,null,null,null,null,null,null,null,null,null,null,null,null,null,null,null,null,0]
[4255,"National Animal Supplement Council","Y",null,null,null,null,null,null,1,null,null,1,null,null,null,null,null,null,null,1,1,1,null,null,null,null,null,null,null,null,null,null,null,null,null,null,null,null,null,null,null,null,null,null,null,1]
[7159,"Native Performance Dog Food (*)","Y",null,null,null,null,null,null,null,null,null,null,null,null,null,null,null,1,null,null,null,1,null,null,null,null,1]
[1849,"Natural Farm (*)","Y",null,1,null,null,null,null,null,null,null,null,null,null,null,null,null,null,null,null,null,1,null,null,null,null,null,null,1]
[6419,"Naturally Fresh","Y",null,null,null,null,null,null,null,null,null,null,null,null,null,null,null,null,null,null,1,null,null,null,null,null,null,null,null,null,null,null,null,null,null,null,null,null,null,null,null,1]
[3953,"Nature's Logic","Y",null,1,null,null,null,null,null,null,null,null,null,null,null,null,null,null,null,null,1,1,null,null,null,null,1,null,1,null,null,null,null,null,null,null,null,null,null,null,null,1,null,null,null,1]
[6030,"Nature's Miracle","Y",null,null,null,null,null,null,null,null,null,null,null,null,null,null,null,1,1,null,1,1,null,null,null,null,null,null,null,null,null,null,null,null,null,null,1,null,1,null,null,1,1,null,null,1,null,null,1,1,1,null,1]
[4011,"Nature's Own Pet Chews/Best Buy Bones","Y",null,null,null,null,null,null,null,null,null,0,0,null,0,0,0,0,0,0,0,1,0,0,0,0,0,0,1,0,0,0,0,0,0,0,0,0,0,0,0,0,0,0,null,0,0,0,0,0,0,0,0]
[1431,"Nature's Specialties LLC","Y",null,null,null,null,null,1,null,null,null,null,null,1,null,null,null,null,1,null,1,1,null,null,null,null,null,null,null,null,null,null,null,null,null,null,null,null,null,null,null,null,null,null,null,1,null,null,1,1]
[4439,"NaturVet","Y",null,null,null,null,null,null,null,null,null,0,0,null,0,0,0,0,0,1,1,1,0,0,0,0,0,0,1,0,0,0,0,0,0,0,0,0,0,0,0,0,0,0,null,1,1,0,1,1,0,0,0]
[5409,"Nautilus","Y",null,null,null,1,null,null,null,null,null,null,1,null,null,1]
[6222,"Nebraska Warehouse (*)","Y",null,null,null,null,null,null,null,null,null,null,null,1]
[7424,"Necoichi","Y",null,null,null,null,null,null,null,null,null,null,null,null,null,null,null,null,null,null,1,null,null,null,1,null,null,1,null,null,null,null,null,1,1,null,null,null,1,null,null,null,1,null,null,null,null,1,null,null,null,null,null,0]
[7539,"Nestle Purina PetCare","Y",null,null,null,null,null,null,null,null,null,null,null,null,null,null,null,null,null,null,1,1,0,0,0,0,1,0,1,1,0,0,0,0,0,0,0,0,0,0,0,1,null,null,null,null,null,null,null,null,null,null,null,0]
[5547,"New Age Pet","Y",null,null,null,null,null,null,null,null,null,null,null,null,null,null,null,1,1,null,1,1,null,null,null,null,null,1,null,null,null,null,null,1,1,null,1,1,null,null,1,null,1,null,null,null,null,null,null,null,null,null,null,0,0]
[5660,"New Hound Life (*)","Y",null,null,null,null,null,null,null,null,null,null,null,null,null,null,null,null,null,null,null,1,null,1,1,null,null,null,null,null,null,null,null,null,null,null,1,null,null,1,null,null,null,null,null,null,null,1,null,null,null,null,null,null,0]
[4819,"New Key Pet LLC","Y",null,null,null,null,null,null,null,null,null,null,null,null,null,null,null,null,null,null,1,1,null,null,1,null,null,1,null,null,1]
[6525,"New Media Retailer","Y",null,null,null,null,null,null,null,null,null,null,null,1]
[1061,"Newco Distributors Inc.","Y",null,1,null,null,null,null,null,null,null,null,1,null,null,null,null,1,1,1,1,1,null,null,null,null,1,null,1,null,null,null,null,null,null,null,null,null,null,null,null,1,null,null,null,1,null,null,null,null,null,1,1]
[5855,"NexPet Retailer Co-op","Y",null,null,null,null,null,null,null,null,null,1,null,1]
[3519,"Next Gen International Corp","Y",null,1,null,null,null,null,null,null,null,0,0,null,0,0,0,0,0,0,1,1,0,0,0,0,null,0,1,0,0,0,0,0,0,0,0,0,0,0,0,1,1,0,null,0,1,0,0,0,0,0,0]
[4817,"NextPaw","Y",null,null,null,null,null,null,null,null,null,null,null,1]
[5611,"N-Gage Brand. LLC","Y",null,null,null,null,null,null,null,null,null,null,null,null,null,null,null,null,null,null,null,1,null,null,1,null,null,null,null,null,1,null,null,null,null,null,1]
[1769,"Nilodor","Y",null,1,null,null,null,null,null,null,null,0,0,0,0,0,0,0,1,1,1,1,0,0,0,0,0,0,0,0,0,0,0,0,0,0,0,0,0,0,0,0,1,1,null,1,1,0,1,1]
[5039,"North States MyPet","Y",null,null,null,null,null,null,null,null,null,0,0,null,0,0,0,1,0,0,0,1,0,0,0,0,0,0,0,0,0,0,0,0,0,0,0,1,null,1,1,0,0,0,null,0,0,0,0,0,0,0,0,0]
[3759,"Northwest Naturals","Y",null,1,null,null,null,null,null,null,null,0,0,null,0,0,0,0,0,0,1,1,0,0,0,0,1,0,1,0,0,0,0,0,0,0,0,0,0,0,0,0,0,0,null,0,0,0,0,0,0,0,0]
[5423,"Northwest Zoological Supply (*)","Y",null,null,null,1,null,null,null,null,null,null,1,null,null,null,1,1,1]
[4169,"NOW Pets","Y",null,null,null,null,null,null,1,null,null,null,null,null,null,null,null,null,null,null,1,1,null,null,null,null,null,null,1,null,null,null,null,null,null,null,null,null,null,null,null,null,null,null,null,1,1]
[7119,"NPIC, Premium Natural Pet Treats","Y",null,null,null,null,null,null,null,null,null,null,null,null,null,null,null,null,1,null,1,1,null,null,null,null,null,null,1,null,null,null,null,null,null,null,null,null,null,null,null,null,null,1,null,1,null,null,null,null,null,null,null,1]
[3539,"NutriSource pet foods","Y",null,1,null,null,null,null,null,null,null,null,null,null,null,null,null,null,null,null,1,1,null,null,null,null,1,null,1]
[5225,"Nylabone","Y",null,null,null,null,null,null,null,null,null,null,null,null,null,null,null,null,null,null,null,1,null,null,null,null,null,null,1,null,1,null,null,null,null,null,null,null,null,null,null,null,null,1,null,null,null,null,null,null,null,null,null,0]
[1440,"Oakwood (*)","Y",null,null,null,null,null,1,null,null,null,null,null,null,null,null,null,null,null,1,null,1,null,null,null,null,null,null,null,null,null,null,null,null,null,null,null,null,null,null,null,null,null,null,null,null,null,1,1,1]
[1541,"OIC Advance","Y",null,null,null,null,null,1,null,null,null,null,null,1]
[3864,"Omega 3 Family Farms","Y",null,1,null,null,null,null,null,null,null,null,null,null,null,null,null,null,null,null,null,1,null,null,null,null,null,null,1,null,null,null,null,null,null,null,null,null,null,null,null,null,null,null,null,null,null,null,null,null,null,null,null,0]
[6030,"Omega One","Y",null,null,null,null,null,null,null,null,null,null,null,null,null,1,null,null,null,null,null,null,null,null,null,null,null,null,null,null,null,null,null,null,null,null,null,null,null,null,null,null,null,null,null,null,null,null,null,null,null,null,null,null,0]
[5658,"Omega Plus","Y",null,null,null,null,null,null,null,null,null,null,null,null,null,null,null,null,null,null,1,1,null,null,null,null,1,null,1,null,null,null,null,null,null,null,null,null,null,null,null,null,null,null,null,1]
[5117,"Omnipet by Leather Brothers Inc.","Y",null,null,null,null,null,null,null,null,null,0,0,null,0,0,0,1,null,0,1,1,0,0,1,1,0,1,null,1,1,0,1,1,0,1,0,0,1,1,null,0,0,0,null,0,null,1,0,0,0,0,0,null,0]
[3639,"Only An Ocean | PoochieBells/Pets","Y",null,1,null,null,null,null,null,null,null,0,0,1,1,0,0,0,0,0,1,1,0,0,1,0,0,1,0,0,1,0,0,0,0,1,0,0,0,0,0,0,0,0,null,null,0,1,1,null,1,0,1]
[3853,"Open Range Pet Treats","Y",null,1,null,null,null,null,null,null,null,null,null,null,null,null,null,null,null,null,null,1,null,null,null,null,null,null,1]
[6319,"Optimeal","Y",null,null,null,null,null,null,null,null,null,null,null,null,null,null,null,null,null,null,1,1,null,null,null,null,1]
[3609,"Organic and Nature Private Label","Y",null,1,null,null,null,null,null,null,null,null,null,1,null,null,null,null,null,null,1,1,null,null,null,null,null,null,null,null,null,null,null,null,null,null,null,null,null,null,null,null,null,null,null,1,null,null,1,1]
[5055,"Oxbow Animal Health","Y",null,null,null,null,null,null,null,null,null,0,0,null,0,0,null,0,1,0,0,0,0,0,0,0,0,0,0,0,0,0,0,0,0,0,0,0,0,0,0,0,0,0,null,0,0,0,0,0,0,0,0]
[1949,"Oxyfresh Pet","Y",null,1,null,null,null,null,null,null,null,null,null,null,null,null,null,1,1,null,1,1,null,null,null,null,null,null,null,null,null,null,null,null,null,null,null,null,null,null,null,null,null,1,null,1,null,null,1,1]
[7367,"PackHire (*)","Y",null,null,null,null,null,null,null,null,1,null,null,1,null,null,null,null,null,null,null,null,null,null,null,null,null,null,null,null,null,null,null,null,null,null,null,null,null,null,null,null,null,null,null,null,null,null,null,null,null,null,null,0,0]
[5560,"Paragon School of Pet Grooming","Y",null,null,null,null,null,null,null,1,null,null,null,1]
[7269,"Passion Bug: Custom Premium Gift Bags On-Demand","Y",null,null,null,null,null,null,null,null,1,null,null,1,1]
[4019,"Patchwork Pet","Y",null,null,null,null,null,null,null,null,null,0,0,null,0,0,0,0,0,0,1,1,0,0,0,0,0,0,0,0,1,0,0,1,0,0,null,0,0,0,0,0,0,0,null,0,0,0,0,0,0,0,0]
[5155,"PAW - Pet Adventures Worldwide","Y",null,null,null,null,null,null,null,null,null,null,1,null,null,null,null,null,null,null,null,1,null,1,1,null,null,1,null,null,1,null,null,null,null,null,1,null,null,1,null,null,null,null,null,null,null,1,0,0,null,0,1]
[4753,"PAW CBD","Y",null,null,null,null,null,null,null,null,null,null,null,null,null,null,null,null,null,null,1,1,null,null,null,null,null,null,1,null,null,null,null,null,null,null,null,null,null,null,null,null,null,null,1,1,null,null,null,null,null,null,null,1]
[1370,"Paw Love","Y",null,1,null,null,null,null,null,null,null,null,null,null,null,null,null,null,null,null,1,1,null,null,null,null,null,null,1]
[6226,"Paw Pops (*)","Y",null,null,null,null,null,null,null,null,null,null,null,null,null,null,null,null,null,null,null,1,null,null,null,null,null,null,1,null,null,null,null,null,null,null,null,null,null,null,null,null,null,null,null,null,null,null,null,null,null,null,null,null,0]
[1248,"PAWKET TREATS","Y",null,1,null,null,null,null,null,null,null,null,null,null,null,null,null,null,null,null,null,1,null,null,null,null,null,null,1,null,null,null,null,null,null,null,null,null,null,null,null,null,null,null,null,null,null,null,null,null,null,null,null,null,0]
[4580,"Pawmigo","Y",null,null,1,null,null,null,null,null,null,null,null,null,null,null,null,null,null,null,null,1,null,1,1]
[1580,"Paws & Co. - Pet Treats & Antlers","Y",null,1,null,null,null,null,null,null,null,null,null,null,null,null,null,null,1,null,null,1,null,null,null,null,null,null,1,null,null,null,null,null,null,null,null,null,null,null,null,null,null,null,null,null,null,null,null,null,null,null,null,0]
[4453,"Paws and Pals","Y",null,null,null,null,null,null,null,null,null,null,null,null,null,null,null,null,null,null,1,1,null,null,1,null,null,1,1,null,1,null,null,1,1,null,1,1,1,1,null,null,1,1,null,1,null,1,1,null,null,1,1,null,0]
[1175,"Paws Gourmet Bakery","Y",null,1,null,null,null,null,null,null,null,null,null,null,null,null,null,null,null,null,null,1,null,null,null,null,null,null,1]
[7765,"Pawse (*)","Y",null,null,null,null,null,null,null,null,1,null,null,null,null,null,null,null,null,null,1,1,null,null,null,null,null,null,1,null,null,null,null,null,null,null,null,null,null,null,null,null,null,null,1,1]
[6255,"Pawz Dog Boots","Y",null,null,null,null,null,null,null,null,null,0,0,null,null,0,0,0,0,0,0,1,0,1,null,0,0,0,0,0,0,0,0,0,0,0,0,0,0,0,0,0,0,0,null,1,0,0,0,1,1,0,0]
[7464,"peaksNpaws","Y",null,null,null,null,null,null,null,null,1,null,null,null,null,null,null,null,null,null,null,1,null,null,null,null,null,null,1,null,null,null,null,null,null,null,null,null,null,null,null,null,null,null,null,1,null,null,null,null,null,null,null,0]
[3203,"Penelope's Bloom","Y",null,1,null,null,null,null,null,null,null,null,null,null,null,null,null,null,null,null,1,1,null,null,null,null,null,null,1,null,null,null,null,null,null,null,null,null,null,null,null,null,null,null,1,1]
[5118,"Penn-Plax","Y",null,null,null,null,null,null,null,null,null,0,0,null,1,1,1,1,1,0,1,1,0,null,1,0,0,1,null,null,1,0,null,1,1,null,1,0,1,0,0,null,1,null,null,0,0,1,0,0,0,1,1]
[5006,"Pepin Manufacturing Inc (*)","Y",null,null,null,null,null,null,null,null,null,null,null,1,1,null,null,null,null,null,1,1,null,null,null,null,null,null,null,null,null,null,null,null,null,null,null,null,null,null,null,null,null,null,null,null,null,1]
[5813,"Perfectus Pet Food, LLC (*)","Y",null,null,null,null,null,null,null,null,null,null,null,null,null,null,null,null,null,null,null,1,null,null,null,null,1]
[1981,"Pet Brand Products, LLC","Y",null,1,null,null,null,null,null,null,null,null,null,null,null,null,null,null,null,null,null,1,null,null,null,null,null,null,1,1]
[5264,"Pet Business Magazine","Y",null,null,null,null,null,null,null,null,null,1,0,null,0,0,0,0,0,0,0,0,0,0,0,0,0,0,0,0,0,0,0,0,0,0,0,0,0,0,0,0,0,0,null,0,0,0,0,0,0,0,0]
[3513,"Pet Center Inc. / PCI","Y",null,1,null,null,null,null,null,null,null,0,0,null,0,0,0,null,0,0,0,1,0,0,0,0,0,0,1,0,0,0,0,0,0,0,0,0,0,0,0,0,0,0,null,0,0,0,0,0,0,0,0]
[6061,"Pet Evac Pak, LLC","Y",null,null,null,null,null,null,null,null,null,null,null,null,null,null,null,null,null,null,1,1,null,null,1,null,1,1,null,null,1,null,null,null,null,null,null,null,1,null,null,1,1,null,null,1]
[5639,"Pet Factory, Inc.","Y",null,null,null,null,null,null,null,null,null,0,0,null,0,0,0,0,0,0,0,1,0,0,0,0,0,0,1,1,1,0,0,0,0,0,0,0,0,0,0,0,0,0,null,0,0,0,0,0,0,0,0]
[7314,"PET FEST INC (*)","Y",null,null,null,null,null,null,null,null,null,null,null,null,null,null,null,null,null,null,null,1,null,null,null,null,null,null,1,null,null,null,null,null,null,null,null,null,null,null,null,null,null,null,null,null,null,null,null,null,null,null,null,0]
[3219,"Pet Food Compliance","Y",null,1,null,null,null,null,null,null,null,null,null,1,null,null,null,null,null,null,1,1,null,null,null,null,1]
[4972,"Pet Gifts USA","Y",null,null,1,null,null,null,null,null,null,null,null,null,1]
[5469,"Pet Industry Joint Advisory Council","Y",null,null,null,null,null,null,null,1,null,1,0,null,0,0,0,0,0,0,0,0,0,0,0,0,0,0,0,0,0,0,0,0,0,0,0,0,0,0,0,0,0,0,null,0,0,0,0,0,0,0,0]
[6539,"Pet Palette","Y",null,null,null,null,null,null,null,null,null,0,1,null,0,0,0,0,0,0,1,1,0,1,1,1,1,1,1,0,1,0,0,0,1,0,1,0,1,0,0,0,0,0,1,1,0,1,1,0,0,0,1,0]
[6249,"Pet Parents®","Y",null,null,null,null,null,null,null,null,null,null,null,null,1,null,null,null,null,null,1,1,null,null,null,null,null,null,1,null,null,null,null,null,null,null,null,null,null,null,null,null,null,null,null,1,null,null,null,null,null,1]
[4625,"Pet Product News International","Y",null,null,null,null,null,null,null,null,null,1]
[1259,"Pet Releaf","Y",null,1,null,null,null,null,null,null,null,null,null,null,null,null,null,null,null,null,1,1,null,null,null,null,null,null,1,null,null,null,null,null,null,null,null,null,null,null,null,null,null,null,1,1]
[5912,"Pet Retail Direct, Inc. (*)","Y",null,null,null,null,null,null,null,null,null,null,null,null,null,null,null,null,null,null,1,1,null,null,null,null,null,null,1,null,null,null,null,null,null,1,null,null,null,null,null,null,null,null,null,null,null,1,null,null,1,1]
[4939,"Pet Shop by Fringe Studio","Y",null,null,null,null,null,null,null,null,null,null,null,null,1,null,null,null,null,null,1,1,null,null,null,null,null,1,null,null,1,null,null,null,null,null,1,null,null,null,null,null,null,null,null,null,null,null,null,null,null,null,1]
[1341,"Pet Society Pet Products","Y",null,null,null,null,null,1,null,null,null,null,null,null,null,null,null,null,null,null,1,1,null,null,null,null,null,null,null,null,null,null,null,null,null,null,null,null,null,null,null,null,null,null,null,null,null,null,1]
[3659,"Pet Sustainability Coalition","Y",null,1,null,null,null,null,null,null,null,1]
[1859,"Petcurean Pet Nutrition","Y",null,1,null,null,null,null,null,null,null,0,0,null,0,0,0,0,0,0,1,1,0,0,0,0,1,0,1,0,0,0,0,0,0,0,0,0,0,0,0,0,0,0,null,null,0,0,0,0,0,0,0,null,0]
[1729,"PetEdge - Boss Pet","Y",null,null,null,null,null,1,null,null,null,null,1,null,1,null,null,null,null,null,1,1,null,1,1,null,null,1,1,1,1,null,1,1,1,1,1,1,1,1,1,null,1,1,null,1,1,1,1,1,1,1,1]
[7009,"Petgent Canada (*)","Y",null,null,null,null,null,null,null,null,null,null,null,null,null,null,null,null,null,null,1,1,null,1,1,1,null,null,null,null,null,null,null,null,null,null,null,null,null,null,null,null,null,null,null,null,null,null,null,null,null,null,null,1,1]
[3819,"PetHonesty (*)","Y",null,1,null,null,null,null,null,null,null,null,null,null,null,null,null,null,null,null,1,1,null,null,null,null,null,null,1,null,null,null,null,null,null,null,null,null,null,null,null,null,null,null,null,1,null,null,1]
[5258,"Petking, Inc (*)","Y",null,null,null,null,null,null,null,null,null,null,null,null,null,null,null,null,null,null,1,1,null,null,1,null,null,null,null,null,1,null,null,null,null,null,null,null,null,null,null,null,null,null,null,null,null,null,null,null,null,null,null,null,0]
[4949,"Petlingo Wholesale","Y",null,null,null,null,null,null,null,null,null,null,null,null,1,null,null,null,null,null,null,1,null,null,null,null,null,null,1]
[4865,"Petorama/Nayothecorgi","Y",null,null,1,null,null,null,null,null,null,null,null,null,1,null,null,null,null,null,null,1,null,1,null,null,null,1,null,null,1,null,null,null,null,null,1]
[6512,"Petoria (*)","Y",null,null,null,null,null,null,null,null,null,null,null,null,null,null,null,null,null,null,1,1,null,null,1,null,1,1,1,null,1,null,null,1,1,null,1,null,1,null,1,1,1,null,null,null,null,null,null,1,null,1]
[4974,"Petote","Y",null,null,1,null,null,null,null,null,null,0,0,null,0,0,0,0,0,0,0,1,0,0,0,0,0,0,0,0,0,0,0,0,0,0,0,0,1,0,0,0,0,0,null,0,0,0,0,0,0,0,0]
[4919,"PetPals Group","Y",null,null,null,null,null,null,null,null,null,0,0,null,0,0,0,null,null,0,1,1,0,0,0,0,0,null,0,0,1,0,0,1,1,0,1,0,null,0,0,0,null,0,null,0,0,0,0,0,0,0,0]
[7562,"Petralyte (*)","Y",null,null,null,null,null,null,null,null,1,null,null,null,null,null,null,null,null,null,null,1,null,null,null,null,null,null,null,null,null,null,null,null,null,null,null,null,null,null,null,null,null,null,null,1]
[1770,"Pets Global Inc.","Y",null,1,null,null,null,null,null,null,null,0,0,null,0,0,0,0,0,0,1,1,0,0,0,0,1,0,1,0,0,0,0,0,0,0,0,0,0,0,0,0,0,0,null,0,0,0,0,0,0,0,0]
[6312,"Pets+ Magazine","Y",null,null,null,null,null,null,null,null,null,1]
[2078,"PetShop360","Y",null,1,null,null,null,null,null,null,null,null,null,1,null,null,null,null,null,null,null,null,null,null,null,null,null,null,null,null,null,null,null,null,null,null,null,null,null,null,null,null,null,null,null,null,null,null,null,null,null,null,null,null,0]
[7239,"Petsport, Inc.","Y",null,null,null,null,null,null,null,null,null,0,0,null,null,0,0,0,null,0,1,1,0,0,null,0,0,1,null,0,1,0,null,0,0,0,0,0,0,0,0,0,0,0,null,0,0,null,0,0,0,0,1]
[7157,"PetStrips Branded Products","Y",null,null,null,null,null,null,null,null,null,null,null,null,null,null,null,null,null,null,null,1,null,null,null,null,null,null,null,null,null,null,null,null,null,null,null,null,null,null,null,null,null,null,null,1,null,null,null,null,null,null,null,0]
[4425,"Phillips Pet Food & Supplies","Y",null,null,null,null,null,null,null,null,null,null,1,null,null,1,1,1,1,1,1,1,null,1,1,1,1,1,1,1,1,1,1,1,1,1,1,1,1,1,1,1,1,1,1,1,1,1,1,1,1,1,1]
[5954,"PIDA/Pet Store Pro","Y",null,null,null,null,null,null,null,null,null,1,null,1]
[4664,"Pink Papyrus (*)","Y",null,null,1,null,null,null,null,null,null,null,null,null,null,null,null,null,null,null,null,1,null,1,1]
[3904,"Plastic Packaging Technologies","Y",null,1,null,null,null,null,null,null,null,null,null,1,null,null,null,null,null,null,1,1,null,null,null,null,1,null,1,null,null,null,null,null,null,null,null,null,null,null,null,null,null,null,null,null,null,null,null,null,null,null,null,0]
[1749,"Plato Pet Treats","Y",null,1,null,null,null,null,null,null,null,0,0,null,0,0,0,0,0,0,0,1,0,0,0,0,0,0,1,0,0,0,0,0,0,0,0,0,0,0,0,0,0,0,null,1,0,0,0,0,0,0,0]
[7339,"PLAY Pet Lifestyle and You","Y",null,null,null,null,null,null,null,null,null,null,null,null,1,null,null,null,null,null,1,1,null,null,1,null,null,1,null,null,1,null,null,1,1,null,1,null,null,null,null,null,null,null,null,null,null,null,null,null,null,null,1]
[4469,"Plush","Y",null,null,1,null,null,null,null,null,null,null,null,null,null,null,null,null,null,null,null,1,null,null,1]
[3825,"Polkadog ","Y",null,1,null,null,null,null,null,null,null,null,null,null,1,null,null,null,null,null,null,1,null,null,null,null,null,null,1,null,null,null,null,null,null,null,null,null,null,null,null,null,null,null,null,null,null,null,null,null,null,null,null,null,0]
[7461,"Pooch Pouch, LLC","Y",null,null,null,null,null,null,null,null,null,null,null,null,null,null,null,null,null,null,null,1,null,null,null,null,null,null,null,null,null,null,null,null,null,null,null,null,1]
[4153,"PoochPad Products","Y",null,null,null,null,null,null,null,null,null,null,null,null,null,null,null,null,null,null,null,1,null,null,null,null,null,null,null,null,null,null,null,null,null,null,1,null,null,null,null,null,null,null,null,null,null,null,null,1,null,1,1]
[7667,"Poultry Pro Feeder (*)","Y",null,null,null,null,null,null,null,null,1,null,null,null,null,null,null,1]
[1170,"Prairie Dog Pet Products - Dog Treats & Antlers","Y",null,1,null,null,null,null,null,null,null,0,0,null,0,0,0,0,0,0,0,1,0,0,null,0,0,0,1,0,0,0,0,0,0,0,0,0,0,0,0,0,0,0,null,0,0,0,0,0,0,0,0]
[4368,"Prefer Pets","Y",null,null,null,null,null,null,1,null,null,null,null,null,null,null,null,null,null,null,1,1,null,null,null,null,null,null,null,null,null,null,null,null,null,null,null,null,1]
[1046,"Premier Kites and Designs","Y",null,1,null,null,null,null,null,null,null,null,null,null,1,null,null,null,null,null,null,null,null,null,null,null,null,null,null,null,null,null,null,null,null,null,null,null,null,null,null,null,null,null,null,null,null,null,null,null,null,null,null,1,0]
[4749,"Prestolabels.com","Y",null,null,null,null,null,null,null,null,null,null,null,1]
[5025,"Prevue Pet Products","Y",null,null,null,null,null,null,null,null,null,0,0,null,0,0,null,1,1,0,1,1,0,0,null,0,0,null,0,0,1,0,0,1,1,1,1,0,1,null,1,0,1,0,null,0,0,0,0,0,0,0,1]
[3968,"Pride+Groom (*)","Y",null,1,null,null,null,null,null,null,null,null,null,null,null,null,null,null,null,null,null,1,null,null,null,null,null,null,null,null,null,null,null,null,null,null,null,null,null,null,null,null,null,null,null,null,null,null,1,null,1]
[1778,"Primal Pet Foods, Inc","Y",null,1,null,null,null,null,null,null,null,0,0,null,0,0,0,0,0,0,1,1,0,0,0,0,1,0,1,0,0,0,0,0,0,0,0,0,0,0,0,0,0,0,null,1,0,0,0,0,0,0,0]
[1459,"Primalvore","Y",null,1,null,null,null,null,null,null,null,null,null,null,null,null,null,null,null,null,1,1,null,null,null,null,null,null,null,null,null,null,null,null,null,null,null,null,null,null,null,null,null,null,null,1]
[3967,"Primo Animal Health","Y",null,1,null,null,null,null,null,null,null,null,null,null,null,null,null,null,null,null,null,1,null,null,null,null,null,null,1,null,null,null,null,null,null,null,null,null,null,null,null,null,null,null,null,1,null,null,null,null,null,null,null,null,0]
[5064,"PRO MOHS PET PRODUCTS","Y",null,null,1,null,null,null,null,null,null,null,null,null,null,null,null,null,null,null,null,1,null,null,1,null,null,null,null,null,null,null,null,null,null,null,null,null,null,null,null,null,null,null,null,null,null,null,null,null,null,null,null,null,0]
[7830,"Professional Pet Products","Y",null,null,null,null,null,null,null,null,null,0,0,null,0,0,0,1,1,0,1,1,0,0,0,0,0,0,null,0,0,0,0,0,0,0,0,0,0,0,0,0,0,1,null,1,1,0,1,1,1,0,0]
[3658,"Project Sudz (*)","Y",null,1,null,null,null,null,null,null,null,null,null,null,null,null,null,null,null,null,1,1,null,null,null,null,null,null,null,null,null,null,null,null,null,null,null,null,null,null,null,null,null,null,null,1,null,null,1,1]
[6155,"Pronk Pets","Y",null,null,null,null,null,null,null,null,null,null,null,null,null,null,null,null,null,null,1,1,null,null,null,null,null,1,null,null,1]
[3909,"Prospect Farms (*)","Y",null,1,null,null,null,null,null,null,null,null,null,null,null,null,null,null,null,null,null,1,null,null,null,null,null,null,null,null,null,null,null,null,null,null,null,null,null,null,null,null,null,null,1,1]
[6524,"Protein Products LLC","Y",null,null,null,null,null,null,null,null,null,null,null,null,null,1,1,1,null,null,1,1,null,null,null,null,null,null,null,null,null,null,null,null,null,null,null,null,null,null,null,null,null,null,null,1]
[4866,"PupLid Trucker Hats for Dogs (*)","Y",null,null,1,null,null,null,null,null,null,null,null,null,null,null,null,null,null,null,null,1,null,1]
[4571,"Puppia International Inc.","Y",null,null,1,null,null,null,null,null,null,0,0,null,0,0,0,0,0,0,null,1,0,1,1,0,0,0,0,0,1,0,0,0,1,0,1,0,1,1,0,0,0,0,null,0,0,0,0,0,0,0,1]
[4670,"Puppy Cake","Y",null,null,1,null,null,null,null,null,null,0,0,0,0,0,0,0,0,0,0,1,0,0,0,0,0,0,1,0,0,0,0,0,0,0,0,0,0,0,0,0,0,0,null,0,0,0,null,null,null,null,null,null,0]
[1129,"PuppyPlayground.com","Y",null,null,null,null,null,1,null,null,null,null,null,null,null,null,null,null,null,null,null,1,null,null,null,null,null,null,null,null,1,1,null,null,null,null,1,null,null,null,null,null,null,null,null,null,null,1]
[6530,"Pure and Natural Pet","Y",null,null,null,null,null,null,null,null,null,null,null,null,null,null,null,null,null,null,1,1,null,null,null,null,null,null,null,null,null,null,null,null,null,null,null,null,null,null,null,null,null,1,null,1,1,null,1,1,1,null,null,0,0]
[3409,"Pure Cravings","Y",null,1,null,null,null,null,null,null,null,null,null,null,null,null,null,null,null,null,1,null,null,null,null,null,1]
[7263,"Pure Pupfection LLC","Y",null,null,null,null,null,null,null,null,1,null,null,null,null,null,null,null,null,null,null,1,null,null,null,null,null,null,null,null,null,null,null,null,null,null,null,null,1]
[6655,"PURRIT","Y",null,null,null,null,null,null,null,null,null,null,null,null,null,null,null,null,null,null,1,null,null,null,null,null,null,null,null,null,null,null,null,null,null,null,null,null,null,null,null,null,null,null,null,null,null,null,null,1,null,null,null,1]
[4539,"QT Dog LLC","Y",null,null,null,null,null,null,null,null,null,0,0,null,null,0,0,1,null,1,1,1,0,0,null,0,0,1,1,0,1,0,0,0,0,0,null,0,0,0,0,0,0,null,null,0,0,0,0,0,0,0,0]
[7458,"Quickbox Fulfillment (*)","Y",null,null,null,null,null,null,null,null,null,null,null,1]
[6711,"Quick-Tag (The Hillman Group)","Y",null,null,null,null,null,null,null,null,null,null,null,1,null,null,null,null,null,null,1,1,null,null,null,1]
[3509,"RAW DOG Chews","Y",null,1,null,null,null,null,null,null,null,null,null,null,null,null,null,null,null,null,null,1,null,null,null,null,null,null,1]
[3709,"Rawz Natural Pet Food","Y",null,1,null,null,null,null,null,null,null,null,null,null,null,null,null,null,null,null,1,1,null,null,null,null,1,null,null,null,null,null,null,null,null,null,null,null,null,null,null,null,null,null,null,1]
[4563,"RC Pets","Y",null,null,1,null,null,null,null,null,null,0,0,null,0,0,0,0,0,0,1,1,0,1,1,0,0,1,0,0,1,0,0,0,0,0,null,0,0,1,0,0,0,0,null,1,0,0,0,0,0,0,0,null,0]
[6513,"REAL SPIRIT USA (*)","Y",null,null,null,null,null,null,null,null,null,null,null,1,1]
[7664,"Receptra Naturals (*)","Y",null,null,null,null,null,null,null,null,1,null,null,null,null,null,null,1,null,null,1,1,null,null,null,null,null,null,1,null,null,null,null,null,null,null,null,null,null,null,null,null,null,null,1,1]
[6211,"Red Collar Pet Foods, Inc (*)","Y",null,null,null,null,null,null,null,null,null,null,null,1,null,null,null,null,null,null,1,1,null,null,null,null,1,null,1]
[7524,"Red Rocket","Y",null,null,null,null,null,null,null,null,null,null,null,null,1,null,null,null,null,null,1,null,null,null,null,null,null,null,null,null,null,null,null,null,1,null,null,null,null,null,null,1,1]
[3209,"Redstone Media Group","Y",null,1,null,null,null,null,null,null,null,1]
[3664,"Remy’s Kitchen","Y",null,1,null,null,null,null,null,null,null,null,null,null,null,null,null,null,null,null,1,1,null,null,null,null,null,null,1]
[7149,"Renegade Products USA (*)","Y",null,null,null,null,null,null,null,null,null,null,null,null,null,null,null,null,null,null,1,1,null,null,null,null,null,null,1,null,null,null,null,null,null,null,null,null,null,null,null,null,null,1,1,1,null,null,1,1,null,null,null,1]
[4319,"Replenish Pet ","Y",null,null,null,null,null,null,null,null,null,null,null,null,null,null,null,null,null,null,1,1,null,null,null,null,1,null,null,null,null,null,null,null,null,null,null,null,null,null,null,null,null,null,null,1]
[4347,"Reptile Deli- International Pet Products (*)","Y",null,null,null,null,null,null,null,null,null,null,null,null,null,null,1]
[5324,"Reptiles by Mack ","Y",null,null,null,1,null,null,null,null,null,null,1,null,null,null,1]
[5818,"Retail NXI, Inc.","Y",null,null,null,null,null,null,null,null,null,null,null,1]
[1976,"Rex Animal Nutrition","Y",null,1,null,null,null,null,null,null,null,null,null,null,null,null,null,null,null,1,1,1,null,null,null,null,null,null,null,null,null,null,null,null,null,null,null,null,null,null,null,null,null,null,1,1]
[5339,"Richell USA, Inc.","Y",null,null,null,null,null,null,null,null,null,0,0,null,0,0,0,0,null,0,1,1,0,0,0,0,0,1,0,0,0,0,0,0,1,null,1,1,1,0,1,0,1,0,null,0,0,0,0,0,0,1,0]
[4066,"Rio Grande Service Center","Y",null,1,null,null,null,null,null,null,null,null,1,null,null,null,null,1,1,1,1,1,null,1,1,1,1,1,1,1,1,1,1,1,1,1,1,1,1,1,1,1,1,1,null,1,1,1,1,1,1,1,1,1]
[5455,"Roam Pets","Y",null,null,null,null,null,null,null,null,null,null,null,null,null,null,null,null,null,null,null,1,null,null,null,null,null,null,1,null,null,null,null,null,null,null,null,null,null,null,null,null,null,null,null,null,null,null,null,null,null,null,null,null,0]
[3403,"Rocco & Roxie Supply Co.","Y",null,1,null,null,null,null,null,null,null,null,null,null,null,null,null,null,null,null,1,1,null,1,1,1,null,null,1,null,1,null,null,null,null,null,null,null,null,null,null,null,null,null,null,null,null,null,1,1]
[1272,"Rover's Wellness","Y",null,1,null,null,null,null,null,null,null,null,null,null,null,null,null,null,null,1,1,1,null,null,null,null,null,null,null,null,null,null,null,null,null,null,null,null,null,null,null,null,null,null,1,1]
[7024,"Royal Canin USA and Eukanuba","Y",null,null,null,null,null,null,null,null,null,null,null,null,null,null,null,null,null,null,1,1,null,null,null,null,1,null,1,null,null,null,null,null,null,null,null,null,null,null,null,null,null,null,null,1]
[7219,"Royal Pet Inc","Y",null,null,null,null,null,null,null,null,null,0,0,null,0,0,1,0,0,0,1,1,0,1,null,0,0,1,1,1,1,0,0,1,0,0,null,0,0,0,null,0,1,0,null,0,0,null,0,1,0,1,1]
[5046,"Rubie's Pet Shop Boutique","Y",null,null,null,null,null,null,null,null,null,0,0,null,0,0,0,0,0,0,1,1,0,1,null,0,0,0,0,0,0,0,0,0,0,0,0,0,0,0,0,0,0,0,null,0,0,0,0,0,0,0,0,0]
[7766,"Rubit Sabit E-Tag (*)","Y",null,null,null,null,null,null,null,null,1,null,null,null,null,null,null,null,null,null,null,1,null,null,null,1]
[5067,"Ruff Dawg","Y",null,null,null,null,null,null,null,null,null,0,0,null,0,0,0,0,0,0,0,1,0,0,0,0,0,0,0,0,1,0,0,0,0,0,0,0,0,0,0,0,0,0,null,0,0,0,0,0,0,0,0]
[4964,"Ruff Land Performance Kennels (*)","Y",null,null,1,null,null,null,null,null,null,null,null,null,null,null,null,null,null,null,null,1,null,null,null,null,null,null,null,null,null,null,null,null,null,null,null,null,1,null,null,null,null,null,null,null,null,null,null,null,null,null,null,null,0]
[1641,"RunLoyal","Y",null,null,null,null,null,1,null,null,null,null,null,1]
[7039,"Rush Direct Inc","Y",null,null,null,null,null,null,null,null,null,0,0,null,0,0,0,0,0,null,1,1,0,0,0,0,null,null,1,1,0,0,0,0,0,0,0,0,0,0,0,0,0,0,1,1,0,0,1,0,0,0,0]
[1533,"Ryan's Pet Supplies","Y",null,null,null,null,null,1,null,null,null,null,1,null,1,null,null,null,null,null,1,1,1,1,1,1,null,1,1,1,1,1,1,1,1,1,1,1,1,1,1,null,1,1,1,1,1,1,1,1,1,1,1,0]
[1535,"Ryan's Pet Supplies","Y",null,null,null,null,null,1,null,null,null,null,1,null,1,null,null,null,null,null,1,1,1,1,1,1,null,1,1,1,1,1,1,1,1,1,1,1,1,1,1,null,1,1,1,1,1,1,1,1,1,1,1,0]
[5075,"Sabyloo (*)","Y",null,null,null,null,null,null,null,null,null,null,null,null,1,null,null,null,null,null,null,null,null,null,null,null,null,null,null,null,null,null,null,null,null,null,null,null,null,null,null,null,null,null,null,null,null,null,null,null,null,null,null,0]
[7466,"SafePaws (*)","Y",null,null,null,null,null,null,null,null,1,null,null,null,null,null,null,null,null,null,null,1,null,null,null,null,null,null,null,null,null,null,null,null,null,null,null,null,null,null,null,null,null,null,null,null,null,null,null,null,1]
[7769,"Safetypawz LLC","Y",null,null,null,null,null,null,null,null,1,null,null,null,null,null,null,null,null,null,1,1,null,null,null,null,null,null,null,null,null,null,null,null,null,null,null,null,null,null,null,null,null,null,null,null,null,1]
[4667,"Salvage Maria Goods","Y",null,null,1,null,null,null,null,null,null,null,null,null,null,null,null,null,null,null,1,1,null,null,null,null,null,null,null,null,null,null,null,null,1,null,1]
[5213,"San Francisco Bay Brand","Y",null,null,null,null,null,null,null,null,null,0,0,null,0,1,1,null,0,0,0,0,0,0,0,0,0,0,0,0,0,0,0,0,0,0,0,0,0,0,0,0,0,0,null,0,0,0,0,0,0,0,0]
[5824,"Saturn Petcare, Inc. (*)","Y",null,null,null,null,null,null,null,null,null,null,null,1,null,null,null,null,null,null,1,1,null,null,null,null,1,null,1]
[5957,"SAUDER PET HOME","Y",null,null,null,null,null,null,null,null,null,null,null,null,null,null,null,null,null,null,1,1,null,null,null,null,null,null,null,null,null,null,null,1,1,null,1,null,null,null,null,null,null,null,null,null,null,null,null,null,null,null,null,null,0]
[7660,"Sauzul Pharma LLC - Juvenia Pets (*)","Y",null,null,null,null,null,null,null,null,1,null,null,null,null,null,null,null,null,null,null,1,null,null,null,null,null,null,1,null,null,null,null,null,null,null,null,null,null,null,null,null,null,null,null,1]
[3218,"Savage Pet (*)","Y",null,1,null,null,null,null,null,null,null,null,null,null,null,null,null,null,null,null,1,null,null,null,null,null,1,null,1]
[6824,"Savory Prime Pet Treats","Y",null,null,null,null,null,null,null,null,null,null,null,null,null,null,null,null,null,null,null,1,null,null,null,null,null,null,1,1,null,null,null,null,null,null,null,null,null,null,null,null,null,null,null,null,null,null,null,1]
[5618,"Scoochie Pet Products","Y",null,null,null,null,null,null,null,null,null,null,null,null,1,null,null,null,null,null,1,1,null,null,1,null,null,null,1,1,1,null,null,null,null,null,1,null,null,null,null,null,null,null,null,null,null,null,1,1,0,1,1]
[4576,"Scotch & Co.","Y",null,null,1,null,null,null,null,null,null,null,null,null,null,null,null,null,null,null,1,1,null,null,1,null,null,null,null,null,null,null,null,null,null,null,1,null,1]
[4661,"Scout & Zoe's","Y",null,null,1,null,null,null,null,null,null,null,null,null,null,null,null,1,1,1,1,1,null,null,null,null,null,1,1,null,null,null,null,null,null,null,null,null,null,null,null,null,null,null,null,1]
[7711,"Scratch and Peck Feeds","Y",null,null,null,null,1,null,null,null,null,null,null,null,null,null,null,1,null,null,null,null,null,null,null,null,null,null,null,null,null,null,null,null,null,null,null,null,null,null,null,null,null,null,null,null,null,null,null,null,null,null,null,null,0]
[1459,"Scrumptious from Scratch","Y",null,1,null,null,null,null,null,null,null,null,null,null,null,null,null,null,null,null,1,null,null,null,null,null,1]
[5225,"Segrest Farms","Y",null,null,null,null,null,null,null,null,null,null,1,null,null,1]
[3508,"Shameless Pets","Y",null,1,null,null,null,null,null,null,null,null,null,null,null,null,null,null,null,null,1,1,null,null,null,null,null,null,1,null,null,null,null,null,null,null,null,null,null,null,null,null,null,null,null,1]
[5521,"Shed Defender","Y",null,null,null,null,null,null,null,null,null,null,null,null,null,null,null,null,null,null,null,1,null,1,null,null,null,null,1,null,null,null,null,null,null,null,null,null,null,null,null,null,null,null,null,1,null,null,1,null,null,null,null,null,0]
[1446,"Shepherd Boy Farms (*)","Y",null,1,null,null,null,null,null,null,null,null,null,null,null,null,null,null,null,null,1,1,null,null,null,null,null,null,1,null,null,null,null,null,null,null,null,null,null,null,null,null,null,null,null,1]
[1437,"SHERNBAO USA INC","Y",null,null,null,null,null,1,null,null,null,null,null,1,null,null,null,null,null,null,1,1,null,null,null,null,null,null,null,null,null,null,null,null,null,null,null,null,null,null,null,null,null,null,null,null,null,1,null,null,null,null,null,0]
[1132,"Shor-Line","Y",null,null,null,null,null,1,null,null,null,null,null,1,null,null,null,null,null,null,1,1,null,null,null,null,null,1,null,null,null,null,null,null,null,null,null,null,1,null,1,null,null,null,null,null,null,1]
[5531,"Show Floor Talks","Y",null,null,null,null,null,null,null,null,null,1]
[4917,"Sittin Pretty Pet Products (*)","Y",null,null,null,null,null,null,null,null,null,null,null,null,null,null,null,1,null,null,1,1,null,null,null,null,null,null,1,null,null,null,null,null,null,null,null,null,null,null,null,null,null,1,null,1,null,null,1]
[3419,"Skout's Honor","Y",null,1,null,null,null,null,null,null,null,null,null,1,null,null,null,null,null,null,1,1,null,null,null,null,null,null,null,null,null,null,null,null,null,null,null,null,null,null,null,null,null,null,null,1,1,null,1,1]
[7163,"Slip Lead Plus","Y",null,null,null,null,null,null,null,null,1,null,null,null,null,null,null,null,null,null,null,1,null,null,1]
[6030,"SmartBones","Y",null,null,null,null,null,null,null,null,null,null,null,null,null,null,null,null,null,null,null,1,null,null,null,null,null,null,1]
[7810,"Snap Lock Chicken Coops and Dog Houses","Y",null,null,null,null,1,null,null,null,null,null,null,null,null,null,null,1,null,null,null,1,null,null,null,null,null,null,null,null,null,null,null,null,null,null,null,null,null,null,1,null,null,null,null,null,null,null,null,null,null,null,null,1,1]
[1672,"Snappy Tom Pet Supply","Y",null,1,null,null,null,null,null,null,null,null,null,null,null,null,null,null,null,null,1,null,null,null,null,null,1,null,null,null,null,null,null,null,null,null,null,null,null,null,null,1]
[3913,"Snif-Snax","Y",null,1,null,null,null,null,null,null,null,null,null,null,null,null,null,null,null,null,1,1,null,null,null,null,null,null,1,null,null,null,null,null,null,null,null,0,null,null,null,null,null,null,null,null,null,null,null,null,null,null,null,null,0]
[4561,"Snoozer Pet Products","Y",null,null,1,null,null,null,null,null,null,null,null,null,null,null,null,null,null,null,1,1,null,null,null,null,null,null,null,null,null,null,null,null,1,null,1,null,1,1,null,null,null,null,null,null,null,null,1]
[5854,"SodaPup","Y",null,null,null,null,null,null,null,null,null,null,null,null,null,null,null,null,null,null,null,1,null,null,null,null,null,1,1,null,1]
[4479,"SOFT LINES, INC.","Y",null,null,1,null,null,null,null,null,null,null,null,null,null,null,null,null,null,1,null,1,null,null,1,null,null,null,null,null,null,null,null,null,null,null,null,null,null,null,null,null,null,null,null,null,null,null,null,null,null,null,null,1,1]
[5215,"Solarmeter® (*)","Y",null,null,null,null,null,null,null,null,null,null,null,null,null,null,1]
[3713,"Solid Gold Pet","Y",null,1,null,null,null,null,null,null,null,null,null,null,null,null,null,null,null,null,1,1,null,null,null,null,1,null,1,null,null,null,null,null,null,null,null,null,null,null,null,null,null,null,null,1,null,null,null,null,null,null,null,null,0]
[7368,"Sophie's Sweet Cakes","Y",null,null,null,null,null,null,null,null,1,null,null,null,null,null,null,null,null,null,null,1,null,null,null,null,null,null,1]
[4871,"Speartek","Y",null,null,1,null,null,null,null,null,null,null,null,1]
[4366,"Specialty Enzymes & Probiotics","Y",null,null,null,null,null,null,1,null,null,null,null,1,null,null,null,null,null,1,1,1,null,null,null,null,null,null,null,null,null,null,null,null,null,null,null,null,null,null,null,null,null,null,null,1]
[6030,"Spectrum Brands / Global Pet Care","Y",null,null,null,null,null,null,null,null,null,null,null,null,1,1,null,1,1,null,1,1,null,null,null,null,null,null,1,1,1,null,1,1,1,null,1,null,1,null,null,1,1,1,null,1,null,1,1,1,1,null,1]
[7624,"Spina Organics","Y",null,null,null,null,null,null,null,null,null,null,null,null,null,null,null,null,null,null,1,1,null,null,null,null,null,null,null,null,null,null,null,null,null,null,null,null,null,null,null,null,null,null,null,1,1,null,1,null,null,null,null,null,0]
[1345,"SPINS LLC","Y",null,1,null,null,null,null,null,null,null,null,null,1]
[4770,"Spoiled Rotten Dogz","Y",null,null,1,null,null,null,null,null,null,null,null,null,1]
[1752,"Springer","Y",null,1,null,null,null,null,null,null,null,null,null,null,null,null,null,null,null,null,null,1,null,null,null,null,null,1,null,null,null,null,null,null,null,null,null,null,null,null,null,null,null,null,null,null,null,null,null,null,null,null,null,0,0]
[7730,"Spunky Pup","Y",null,null,null,null,null,null,null,null,null,null,null,null,null,null,null,null,null,null,null,1,null,null,null,null,null,null,1,null,1,null,null,null,null,null,null,null,null,null,null,null,null,null,null,null,null,null,null,null,null,null,null,null,0]
[3559,"SquarePet Nutrition","Y",null,1,null,null,null,null,null,null,null,null,null,null,null,null,null,null,null,null,1,1,null,null,null,null,1]
[5569,"Standlee Premium Products (*)","Y",null,null,null,null,null,null,null,null,null,null,null,null,null,null,null,1,1,1]
[5166,"Starmark Pet Products","Y",null,null,null,null,null,null,null,null,null,0,0,null,0,0,0,0,0,0,0,1,0,0,1,0,0,0,1,0,1,0,0,0,0,0,1,0,0,0,0,0,0,0,null,0,0,0,0,0,0,0,0,0]
[3531,"Stashios","Y",null,1,null,null,null,null,null,null,null,null,null,null,null,null,null,null,null,null,1,1,null,null,null,null,null,null,1,null,null,null,null,null,null,null,null,null,null,null,null,null,null,1,null,1]
[4454,"SteelDog","Y",null,null,null,null,null,null,null,null,null,null,null,null,null,null,null,null,null,null,1,1,null,null,1,null,null,null,null,null,1,null,1]
[3647,"Steve's Real Food","Y",null,1,null,null,null,null,null,null,null,0,0,null,0,0,0,0,0,0,1,1,0,0,0,0,1,0,1,0,0,0,0,0,0,0,0,0,0,0,0,0,0,0,null,1,0,0,0,0,0,0,0]
[3925,"Suitical International","Y",null,1,null,null,null,null,null,null,null,null,null,null,null,null,null,null,null,null,1,1,null,1,null,null,null,null,null,null,null,null,null,null,null,null,null,null,null,null,null,null,null,null,null,1]
[5225,"Sun Pet Ltd.","Y",null,null,null,null,null,null,null,null,null,null,null,null,null,1,1,1,1]
[3425,"SUNSHINE MILLS, INC.","Y",null,1,null,null,null,null,null,null,null,null,null,null,null,null,null,null,null,null,1,1,null,null,null,null,1,null,1,null,null,null,null,null,null,null,null,null,null,null,null,null,null,null,null,1]
[3320,"SuperCan Bully Sticks","Y",null,1,null,null,null,null,null,null,null,null,null,null,null,null,null,null,null,null,null,1,null,null,null,null,null,null,1]
[3212,"Superior Farms Pet Provisions","Y",null,1,null,null,null,null,null,null,null,null,null,null,null,null,null,null,null,null,null,1,null,null,null,null,null,null,1]
[4611,"SuperZoo Hub by WPA","Y",null,null,null,null,null,null,null,null,null,1,null,null,null,null,null,null,null,null,null,null,null,null,null,null,null,null,null,null,null,null,null,null,null,null,null,null,null,null,null,null,null,null,null,null,null,null,null,null,null,null,null,0]
[4367,"Susan Lanci Designs","Y",null,null,1,null,null,null,null,null,null,null,null,null,null,null,null,null,null,null,null,1,null,1,1,null,null,1,null,null,null,null,null,null,null,null,1,null,1,null,null,null,null,null,null,null,null,null,null,null,null,1]
[6209,"Sustainably Yours","Y",null,null,null,null,null,null,null,null,null,null,null,null,null,null,null,null,null,null,1,null,null,null,null,null,null,null,null,null,null,null,null,null,null,null,null,null,null,null,null,1,null,null,null,null,null,null,null,null,null,null,null,1]
[5825,"Suzie's CBD Treats","Y",null,null,null,null,null,null,null,null,null,null,null,null,null,null,null,null,null,null,1,1,null,null,null,null,null,null,1,null,null,null,null,null,null,null,null,null,null,null,null,null,null,null,1,1]
[6830,"SynergyLabs","Y",null,null,null,null,null,null,null,null,null,0,0,1,0,0,0,null,null,null,1,1,0,0,0,0,0,0,1,0,0,0,1,0,0,0,0,0,0,0,0,0,0,1,null,1,1,0,1,1,null,0,0,null,0]
[3805,"Tailspring","Y",null,1,null,null,null,null,null,null,null,null,null,null,null,null,null,null,null,null,1,1,null,null,null,null,null,null,null,null,null,null,null,null,null,null,null,null,null,null,null,null,null,null,null,1]
[7013,"TALL TAILS & ORIGINAL TERRITORY","Y",null,null,null,null,null,null,null,null,null,0,0,null,0,0,0,0,0,0,0,1,0,null,1,0,0,1,0,0,1,0,0,0,0,0,1,0,0,0,0,0,0,0,null,0,0,1,0,0,0,0,0]
[7447,"Targeted PetCare","Y",null,null,null,null,null,null,null,null,null,null,null,null,null,null,null,null,1,null,1,null,null,null,null,null,null,null,null,null,null,null,null,null,null,null,null,null,null,null,null,1]
[4570,"Teddy the Dog","Y",null,null,1,null,null,null,null,null,null,null,null,null,1,null,null,null,null,null,null,1,null,1,1]
[6554,"Tether Tug","Y",null,null,null,null,null,null,null,null,null,null,null,null,null,null,null,null,null,null,null,1,null,null,null,null,null,null,1,null,1]
[6030,"Tetra","Y",null,null,null,null,null,null,null,null,null,null,null,null,null,1]
[5655,"Tevra Brands","Y",null,null,null,null,null,null,null,null,null,null,null,null,null,null,null,null,null,null,1,1,null,null,1,null,null,null,1,1,null,null,null,null,null,null,null,null,null,null,null,null,null,null,null,1,1,null,null,null,null,1]
[5413,"Texas Reptiles International (*)","Y",null,null,null,1,null,null,null,null,null,null,1,null,null,null,1,null,null,null,null,null,null,null,null,null,null,null,null,null,null,null,null,null,null,null,null,null,null,null,null,null,null,null,null,null,null,null,null,null,null,null,null,null,0]
[7112,"Thai Awesome Company Limited","Y",null,null,null,null,null,null,null,null,null,null,null,null,null,null,null,null,null,null,1,1,null,null,null,null,1]
[1830,"The Absorber","Y",null,null,null,null,null,1,null,null,null,null,null,1,null,null,null,null,null,null,null,1,null,null,null,null,null,null,null,null,null,null,null,null,null,null,null,null,null,null,null,null,null,null,null,null,null,1,null,null,null,null,null,0]
[4848,"The Care Stop","Y",null,null,null,null,null,null,null,null,null,null,null,1]
[5462,"The Cats Fish","Y",null,null,null,null,null,null,null,null,null,null,null,null,null,null,null,null,null,null,1,null,null,null,null,null,1]
[4671,"The Dog Squad","Y",null,null,1,null,null,null,null,null,null,0,0,null,1,0,0,0,0,0,0,1,0,1,1,0,0,0,0,0,0,0,0,0,0,0,1,0,1,0,0,0,0,0,null,0,0,0,0,0,0,0,0,null,0]
[7561,"The Frontline Coalition (*)","Y",null,null,null,null,null,null,null,null,1,null,null,1,1]
[5958,"The Gralen Company","Y",null,null,null,null,null,null,null,null,null,null,1,null,null,null,null,null,null,null,1,1,null,null,1,null,null,null,1,null,1,null,1,1,1,null,1,null,null,null,null,1,1,null,null,1,null,1,1,1,null,null,1]
[3708,"The Granville Island Pet Treatery","Y",null,1,null,null,null,null,null,null,null,null,null,null,null,null,null,null,null,null,1,1,null,null,null,null,null,null,1,null,null,null,null,null,null,null,null,null,null,null,null,null,null,null,null,1]
[4875,"The Kenyan Collection","Y",null,null,1,null,null,null,null,null,null,null,null,null,1,null,null,null,null,1,null,1,null,1,1,null,null,1,1]
[4963,"The Long Dog Clothing Company","Y",null,null,1,null,null,null,null,null,null,null,null,null,null,null,null,null,null,null,null,1,null,1]
[3764,"The Natural Dog Company","Y",null,1,null,null,null,null,null,null,null,null,null,null,null,null,null,null,null,null,null,1,null,null,null,null,null,null,1]
[5561,"The Pet Care Trust/Pets in the Classroom","Y",null,null,null,null,null,null,null,null,null,1]
[7566,"The Pugly Company/Fluff Trough (*)","Y",null,null,null,null,null,null,null,null,1,null,null,null,null,null,null,null,null,null,null,1,null,null,null,null,null,1,null,null,null,null,null,null,null,null,null,null,null,null,null,null,null,null,null,null,null,null,null,null,null,null,null,1]
[4761,"The Worthy Dog","Y",null,null,1,null,null,null,null,null,null,null,null,null,null,null,null,null,null,null,1,1,null,1,1,null,null,null,null,null,1,null,null,null,null,null,null,null,null,null,null,null,null,null,null,null,null,null,null,null,null,null,null,1]
[5355,"thetriadaer.com","Y",null,null,null,null,null,null,null,null,null,null,null,1,1,null,null,null,null,null,1,1,null,null,null,null,null,null,null,null,null,null,null,null,null,null,null,null,null,null,null,null,null,null,null,null,null,null,null,1,null,null,null,1]
[7514,"Thomas Pet (Formerly Thomas Labs)","Y",null,null,null,null,null,null,null,null,null,null,null,null,null,null,null,1,null,null,1,1,null,null,null,null,null,null,null,null,null,null,null,null,null,null,null,null,null,null,null,null,null,null,null,1,null,null,1,null,null,null,null,null,0]
[7465,"TickCheck Tick Testing (*)","Y",null,null,null,null,null,null,null,null,1,null,null,null,null,null,null,null,null,null,1,1,null,null,null,null,null,null,null,null,null,null,null,null,null,null,null,null,null,null,null,null,null,null,null,1,1,null,null,null,null,null,null,null,0]
[4160,"Timberline Live Pet Foods","Y",null,null,null,null,null,null,1,null,null,0,0,null,0,1,1,1,1,0,0,0,0,0,0,0,0,0,0,0,0,0,0,0,0,0,0,0,null,null,null,null,null,null,null,null,null,null,null,null,null,null,null,null,0]
[5139,"Tomlyn Veterinary Science","Y",null,null,null,null,null,null,null,null,null,0,0,null,0,0,0,0,1,1,1,1,0,0,0,0,0,0,1,0,0,0,0,0,0,0,0,0,0,0,0,0,0,0,null,1,0,0,0,1,0,0,0,0]
[7663,"Tonisity/Companion Animal (*)","Y",null,null,null,null,null,null,null,null,1,null,null,null,null,null,null,null,null,null,1,1,null,null,null,null,null,null,null,null,null,null,null,null,null,null,null,null,null,null,null,null,null,null,null,1]
[5645,"TOP DOG BRAND / K-9 Leather Gear","Y",null,null,null,null,null,null,null,null,null,null,null,null,null,null,null,null,null,null,null,1,null,null,1,null,null,null,null,null,null,null,null,null,null,null,1,null,null,null,null,null,null,null,null,null,null,null,null,null,null,null,null,null,0]
[5011,"Total Dog! Vegas (*)","Y",null,null,null,null,null,null,null,null,null,null,null,1]
[5169,"TradeBeyond","Y",null,null,null,null,null,null,null,null,null,null,null,1]
[1357,"Treat Planet","Y",null,1,null,null,null,null,null,null,null,null,null,null,null,null,null,null,null,null,1,1,null,null,null,null,null,null,1,null,null,null,null,null,null,null,null,null,null,null,null,null,null,null,null,null,null,null,null,null,null,null,null,0]
[1845,"Treatibles","Y",null,1,null,null,null,null,null,null,null,null,null,null,null,null,null,null,null,1,1,1,null,null,null,null,null,null,1,null,null,null,null,null,null,null,null,null,null,null,null,null,null,null,1,1]
[7858,"TriNova (*)","Y",null,null,null,null,null,null,null,null,null,null,null,null,null,null,null,null,null,null,1,1,null,null,null,null,null,null,null,null,null,null,null,null,null,null,null,null,null,null,null,null,null,null,null,null,null,null,null,1,null,null,null,null,0]
[3804,"Trisha Yearwood Pet Collection (*)","Y",null,1,null,null,null,null,null,null,null,null,null,null,null,null,null,null,null,null,1,1,null,null,1,null,null,null,1,null,null,null,null,null,null,null,1,null,1,null,null,null,null,null,null,1,null,null,1,null,1]
[5320,"Tropical Fish International (5421)","Y",null,null,null,1,null,null,null,null,null,null,1,null,null,1]
[1735,"TropiClean Pet Products","Y",null,null,null,null,null,1,null,null,null,0,0,null,0,0,0,0,0,0,1,1,0,0,0,0,0,0,1,0,0,0,0,0,0,0,0,0,0,0,0,0,0,1,null,1,1,null,1,null,1,0,0,null,0]
[6939,"TropiClean Pet Products (1735)","Y",null,null,null,null,null,null,null,null,null,0,0,null,0,0,0,0,0,0,1,1,0,0,0,0,0,0,1,0,0,0,0,0,0,0,0,0,0,0,0,0,0,1,null,1,1,null,1,null,1,0,0]
[4179,"True Leaf Pet","Y",null,null,null,null,null,null,1,null,null,null,null,null,null,null,null,null,null,null,null,1,null,null,null,null,null,null,1,null,null,null,null,null,null,null,null,null,null,null,null,null,null,1,null,1]
[3961,"TrueBlue Pet Products ","Y",null,1,null,null,null,null,null,null,null,null,null,null,null,null,null,null,null,null,1,1,null,null,null,null,null,null,null,null,null,null,null,null,null,null,null,null,null,null,null,null,null,null,null,1,null,null,1,null,1,null,null,1]
[3303,"Tuscan Natural Pet Foods & Treats","Y",null,1,null,null,null,null,null,null,null,0,0,0,0,0,0,0,0,0,1,1,0,0,0,0,1,0,1,0,0,0,0,0,0,0,0,0,0,0,0,0,0,0,1,1,0,0,0,0,0,0,0]
[6861,"U.S. Display Group","Y",null,null,null,null,null,null,null,null,null,null,null,1,null,null,null,null,null,null,null,null,null,null,null,null,null,null,null,null,null,null,null,null,null,null,null,null,null,null,null,null,null,null,null,null,null,null,null,null,null,null,null,null,0]
[6849,"Uckele Health & Nutrition","Y",null,null,null,null,null,null,null,null,null,0,0,null,0,0,0,0,0,1,0,1,0,0,0,0,0,0,1,0,0,0,0,0,0,0,0,0,0,0,0,0,0,0,null,1,0,0,1,0,0,0,0]
[4465,"Ultimate Pet Bed","Y",null,null,1,null,null,null,null,null,null,null,null,null,null,null,null,null,null,null,1,1,null,null,null,null,null,null,null,null,null,null,null,null,null,null,1,null,null,1]
[1569,"Ultra Pet","Y",null,1,null,null,null,null,null,null,null,0,0,null,0,0,0,0,0,0,1,null,0,0,0,0,0,1,0,0,0,0,0,0,0,0,0,0,0,0,0,1,1,0,null,null,0,0,0,0,0,0,0]
[4060,"Unique Pet Care","Y",null,1,null,null,null,null,null,null,null,null,null,null,null,null,null,null,null,null,1,1,null,null,null,null,null,null,null,null,null,null,null,null,null,null,null,null,null,null,null,null,null,null,null,null,null,null,null,1]
[6919,"United States Postal Service","Y",null,null,null,null,null,null,null,null,null,null,null,1]
[5606,"Universal Pure (*)","Y",null,null,null,null,null,null,null,null,null,null,null,1]
[4860,"Up Country Inc.","Y",null,null,1,null,null,null,null,null,null,0,0,null,1,0,0,0,0,0,1,1,0,1,1,0,0,null,null,0,1,0,null,0,null,0,null,0,0,0,0,0,0,0,null,0,0,0,0,0,0,0,0,0]
[1140,"Utsumi America","Y",null,null,null,null,null,1,null,null,null,null,null,1,null,null,null,null,null,null,null,1,null,null,null,null,null,null,null,null,null,null,null,null,null,null,null,null,null,null,null,null,null,null,null,null,null,1]
[5239,"Van Ness Pet Products","Y",null,null,null,null,null,null,null,null,null,0,0,null,0,0,0,0,1,0,1,1,0,0,0,0,0,1,0,0,0,0,1,1,0,0,1,0,1,0,0,0,1,0,null,0,0,0,0,0,0,0]
[7215,"Vast and Snappy (*)","Y",null,null,null,null,null,null,null,null,null,null,null,null,null,null,null,null,null,null,null,1,null,null,null,null,null,null,null,null,null,null,null,null,null,null,null,null,null,null,null,null,null,null,1,1]
[4665,"Vee Enterprises","Y",null,null,1,null,null,null,null,null,null,null,null,null,null,null,null,null,null,null,1,1,null,null,null,null,null,null,null,null,1]
[5717,"Vet Worthy/Finish Line Pets","Y",null,null,null,null,null,null,null,null,null,null,null,null,null,null,null,null,null,null,1,1,null,null,1,null,null,null,1,null,null,null,null,null,null,null,null,null,null,null,null,null,null,1,null,1,null,null,null,null,1,null,null,1,1]
[5746,"Vetericyn Animal Wellness","Y",null,null,null,null,null,null,null,null,null,null,null,null,null,null,1,1,1,1,1,1,null,null,null,null,null,null,null,null,null,null,null,null,null,null,null,null,null,null,null,null,null,null,null,1,null,null,1]
[5747,"Veterinary Service Inc (VSI)","Y",null,null,null,null,null,null,null,null,null,null,1,null,null,null,null,1,1,1,1,1,null,1,1,1,1,1,1,1,1,1,1,1,1,1,1,1,1,1,1,1,1,1,1,1,1,1,1,1,1,1,1,0]
[3618,"Vireo Systems, Inc","Y",null,1,null,null,null,null,null,null,null,null,null,null,null,null,null,null,null,null,1,1,null,null,null,null,null,null,null,null,null,null,null,null,null,null,null,null,null,null,null,null,null,null,null,1]
[1645,"Visionary Keto Pet Foods","Y",null,1,null,null,null,null,null,null,null,null,null,null,null,null,null,null,null,null,null,1,null,null,null,null,1]
[5306,"Vista Pet Supply ","Y",null,null,null,1,null,null,null,null,null,null,1,null,null,null,1]
[6619,"Volkman Pet Products","Y",null,null,null,null,null,null,null,null,null,0,0,null,0,0,0,1,1,0,0,0,0,0,0,0,0,0,0,0,0,0,0,0,0,0,0,0,0,0,0,0,0,0,null,0,0,0,0,0,0,0,0,null,0]
[3525,"Wag USA","Y",null,1,null,null,null,null,null,null,null,null,null,null,null,null,null,null,null,null,null,1,null,null,null,null,null,null,1]
[6224,"Waggin Water | Hydration for Pets","Y",null,null,null,null,null,null,null,null,null,null,null,null,null,null,null,null,null,null,null,1,null,null,null,null,null,1,null,null,null,null,null,null,null,null,null,null,null,null,null,null,null,null,1,1]
[1238,"Wag'n Tails Mobile Conversions, Inc.","Y",null,null,null,null,null,1,null,null,null,null,null,1]
[4947,"Wagsdale","Y",null,null,null,null,null,null,null,null,null,null,null,null,1,null,null,null,null,null,1,1,null,null,null,null,null,1,null,null,1,null,null,null,null,null,1,null,null,null,null,null,null,null,null,null,null,null,null,null,null,null,1]
[6515,"Wagz","Y",null,null,null,null,null,null,null,null,null,null,null,null,null,null,null,null,null,null,null,1,null,null,1,null,null,null,null,null,null,null,null,null,null,1]
[1929,"Wahl Clipper","Y",null,null,null,null,null,1,null,null,null,0,0,1,0,0,0,0,1,1,1,1,1,0,0,0,0,0,0,0,0,0,0,0,0,0,0,0,0,0,0,0,0,0,null,0,0,1,null,0,null,0,0]
[3858,"Walk About Pet Products","Y",null,1,null,null,null,null,null,null,null,null,null,null,null,null,null,null,null,null,1,1,null,null,null,null,1,null,1]
[5654,"Walkin' Pets by HandicappedPets.com","Y",null,null,null,null,null,null,null,null,null,null,null,null,1,null,null,null,null,null,null,1,1,1,1,null,null,null,null,null,1,null,null,null,null,null,1,null,null,1,null,null,null,null,null,1,null,null,null,null,null,1,null,null,0]
[4147,"Ware Pet Products","Y",null,null,null,null,null,null,null,null,null,0,0,null,0,0,null,1,1,0,1,1,0,0,0,0,0,0,0,0,1,null,0,1,1,0,1,1,1,1,1,0,0,0,null,0,0,0,0,0,0,0,0,null,0]
[1745,"Warren London","Y",null,1,null,null,null,null,null,null,null,0,0,null,1,0,0,0,0,0,null,1,0,null,1,0,0,0,0,0,0,0,0,0,0,0,0,0,0,0,0,0,0,"`",null,1,1,1,1,1,null,0,0]
[5713,"Wee Away Company","Y",null,null,null,null,null,null,null,null,null,null,null,null,null,null,null,1,1,null,1,1,null,null,null,null,null,null,null,null,null,null,null,null,null,null,null,null,null,null,null,null,null,null,null,null,null,null,1,1,1]
[3831,"WellPet","Y",null,1,null,null,null,null,null,null,null,0,0,null,0,0,0,0,null,0,1,1,0,0,0,0,1,0,1,0,0,0,0,0,0,0,0,0,0,0,0,0,0,0,null,0,0,0,0,0,0,0,0]
[2072,"WellPUR Pets","Y",null,1,null,null,null,null,null,null,null,null,null,null,null,null,null,null,null,null,1,1,null,null,null,null,null,null,1,null,null,null,null,null,null,null,null,null,null,null,null,null,null,null,1,1]
[1136,"West Coast Grooming Academy","Y",null,null,null,null,null,1,null,null,null,null,null,1,null,null,null,null,null,null,1,1]
[3739,"West Paw","Y",null,1,null,null,null,null,null,null,null,0,0,null,0,0,0,0,0,0,null,1,0,null,1,0,0,1,1,0,1,0,null,0,0,0,1,0,0,0,0,0,0,0,null,0,0,0,0,0,0,0,0]
[1459,"Wet Noses Natural Dog Treat Co., Inc.","Y",null,1,null,null,null,null,null,null,null,0,0,null,0,0,0,0,0,0,1,1,0,0,0,0,1,0,1,0,0,0,0,0,0,0,0,0,0,0,0,0,0,0,1,1,0,0,0,0,0,0,0]
[4676,"WholesalePet.com","Y",null,null,1,null,null,null,null,null,null,0,1,null,0,1,1,1,1,1,1,1,0,1,1,1,1,1,1,1,1,1,1,1,1,1,1,1,1,1,1,1,1,1,1,1,1,1,1,1,1,1,1]
[4161,"Wholistic Pet Organics","Y",null,null,null,null,null,null,1,null,null,0,0,null,0,0,0,null,0,1,1,1,0,0,0,0,null,0,1,0,0,0,0,0,0,0,0,0,0,0,0,0,0,0,null,1,1,0,1,0,0,0,0]
[3731,"Wild Eats","Y",null,1,null,null,null,null,null,null,null,null,null,null,null,null,null,null,null,null,null,1,null,null,null,null,null,null,1]
[6030,"Wild Harvest","Y",null,null,null,null,null,null,null,null,null,null,null,null,null,null,null,1,1]
[5072,"Wilderpup","Y",null,null,1,null,null,null,null,null,null,null,null,null,null,null,null,null,null,null,null,1,null,null,1]
[7359,"Wingpet Manufactory Co., Limited (*)","Y",null,null,null,null,null,null,null,null,null,null,null,null,null,null,null,null,null,null,1,1,null,null,null,null,null,null,null,null,1,null,null,1]
[1449,"Winnie Lou - The Canine Co.","Y",null,1,null,null,null,null,null,null,null,null,null,null,null,null,null,null,null,null,null,1,null,null,null,null,null,null,1]
[4918,"WizSmart by Petix","Y",null,null,null,null,null,null,null,null,null,null,null,null,null,null,null,null,null,null,null,1,null,null,null,null,null,null,null,null,null,null,null,null,null,null,null,null,null,null,null,null,null,null,null,null,null,null,null,null,null,1]
[1348,"WJ Packaging Solutions Corp.","Y",null,1,null,null,null,null,null,null,null,null,null,1]
[3866,"Wolf Spring (*)","Y",null,1,null,null,null,null,null,null,null,null,null,null,null,null,null,null,null,null,null,1,null,null,null,null,null,null,null,null,null,null,null,null,null,null,null,null,null,null,null,null,null,null,null,1]
[4249,"Wolfgang Man & Beast","Y",null,null,null,null,null,null,null,null,null,null,null,null,1,null,null,null,null,null,null,1,null,null,1,null,null,1]
[1459,"Woof & Wilder","Y",null,1,null,null,null,null,null,null,null,null,null,1,null,null,null,null,null,null,1,1,null,null,null,null,1,null,1]
[1353,"Woofpak (*)","Y",null,1,null,null,null,null,null,null,null,null,null,null,null,null,null,null,null,null,null,1,null,null,null,null,null,null,1,null,null,null,null,null,null,null,null,null,null,null,null,null,null,null,null,1]
[4777,"Woofwear by International Pet Apparel","Y",null,null,1,null,null,null,null,null,null,null,null,null,null,null,null,null,null,null,1,1,null,null,1]
[1740,"WPA Professional Grooming Credentialing","Y",null,null,null,null,null,1,null,null,null,1]
[5007,"Wyo-Ben Pet (*)","Y",null,null,null,null,null,null,null,null,null,null,null,1,null,null,null,null,null,null,1,null,null,null,null,null,null,null,null,null,null,null,null,null,null,null,null,null,null,null,null,1]
[1638,"XPOWER Manufacture Inc","Y",null,null,null,null,null,1,null,null,null,null,null,1,null,null,null,null,null,null,null,1,null,null,null,null,null,null,null,null,null,null,null,null,null,null,null,null,null,null,null,null,null,null,null,null,null,1]
[1969,"Yak9 Chews","Y",null,1,null,null,null,null,null,null,null,null,null,null,null,null,null,null,null,null,null,1,null,null,null,null,null,null,1]
[3319,"Yappetizers Treat Company","Y",null,1,null,null,null,null,null,null,null,null,null,null,null,null,null,null,null,null,1,1,null,null,null,null,null,null,1,null,null,null,null,null,null,null,null,null,null,null,null,null,null,null,null,1]
[4460,"Yellow Dog Design","Y",null,null,1,null,null,null,null,null,null,0,0,null,0,0,0,0,0,1,1,1,0,1,1,null,0,0,0,0,0,0,0,0,0,0,0,0,0,0,0,0,0,0,null,0,0,0,0,0,0,0,0]
[5161,"Yeowww! Catnip - DuckyWorld Products, Inc.","Y",null,null,null,null,null,null,null,null,null,0,0,null,0,0,0,0,0,0,1,0,0,0,0,0,0,0,null,0,1,0,1,0,0,0,0,0,0,0,0,0,0,0,null,0,0,0,0,0,0,0,0]
[1369,"Yeti Corporation","Y",null,1,null,null,null,null,null,null,null,0,0,null,0,0,0,0,0,0,1,1,0,0,0,0,0,0,1,0,1,0,0,0,0,0,1,0,0,0,0,0,0,0,null,0,0,0,0,0,0,0,0,0]
[7362,"Yoyo’s Breath Treat","Y",null,null,null,null,null,null,null,null,1,null,null,null,null,null,null,null,null,null,null,1,null,null,null,null,null,null,1,null,null,null,null,null,null,null,null,null,null,null,null,null,null,null,null,1]
[7454,"Yummy Combs","Y",null,null,null,null,null,null,null,null,null,null,null,null,null,null,null,null,null,null,null,1,null,null,null,null,null,null,1,null,null,null,null,null,null,null,null,null,null,null,null,null,null,1]
[1373,"YUZU CBD PLUS (*)","Y",null,1,null,null,null,null,null,null,null,null,null,null,null,null,null,null,null,null,1,1,null,null,null,null,null,null,null,null,null,null,null,null,null,null,null,null,null,null,null,null,null,null,1,1]
[1241,"Zen Frenz (*)","Y",null,null,null,null,null,1,null,null,null,null,null,null,null,null,null,null,null,null,1,1,null,null,null,null,null,null,1,null,null,null,null,null,null,null,null,null,null,null,null,null,null,null,1,1,null,null,1,null,null,null,null,null,0]
[5107,"Zen Habitats","Y",null,null,null,null,null,null,null,null,null,null,null,null,null,null,1,null,null,null,null,null,null,null,null,null,null,null,null,null,null,null,null,null,null,null,null,null,null,null,null,null,null,null,null,null,null,null,null,null,null,null,null,null,0]
[5647,"ZenPet","Y",null,null,null,null,null,null,null,null,null,null,null,null,null,null,null,null,null,null,1,1,null,1,1,null,null,null,null,null,null,null,null,null,null,null,null,null,null,null,null,null,null,null,null,1,1,1]
[3619,"Zesty Paws","Y",null,1,null,null,null,null,null,null,null,null,null,null,null,null,null,null,null,null,1,1,null,null,null,null,null,null,1,null,null,null,null,null,null,null,null,null,null,null,null,null,null,1,null,1,null,null,1,null,1]
[1846,"Zilis CBD","Y",null,1,null,null,null,null,null,null,null,null,null,null,null,null,null,null,null,null,1,1,null,null,null,null,null,null,null,null,null,null,null,null,null,null,null,null,null,null,null,null,null,null,1,1,null,null,null,null,null,null,null,0,0]
[5225,"Zilla","Y",null,null,null,null,null,null,null,null,null,null,null,null,null,null,1]
[7319,"Zinpro Corporation","Y",null,null,null,null,null,null,null,null,null,null,null,null,null,null,null,1,1,1,1,1,null,null,null,null,null,null,null,null,null,null,null,null,null,null,null,null,null,null,null,null,null,null,null,1]
[5739,"ZippyPaws","Y",null,null,null,null,null,null,null,null,null,0,0,null,0,0,0,0,0,0,0,1,0,1,1,0,0,1,0,0,1,0,0,0,0,0,null,0,0,1,0,0,0,0,null,0,0,0,0,0,0,0,1]
[1840,"Zolitta (*)","Y",null,null,null,null,null,1,null,null,null,null,null,1,null,null,null,null,null,null,null,1,null,null,null,null,null,null,null,null,null,null,null,null,null,null,null,null,null,null,null,null,null,null,null,null,null,1]
[5539,"Zoo Med Laboratories Inc","Y",null,null,null,null,null,null,null,null,null,0,0,null,null,1,1,1,0,0,0,0,0,0,0,0,0,0,0,0,0,0,0,0,0,0,0,0,0,0,0,0,0,0,null,0,0,0,0,0,0,0,0]
[6213,"ZuluTails (*)","Y",null,null,null,null,null,null,null,null,null,null,null,null,null,null,null,null,null,null,1,1,null,null,1,1]
[5053,"Zymox & Oratene by Pet King Brands, Inc.","Y",null,null,null,null,null,null,null,null,null,null,null,null,null,null,1,1,1,1,1,1,null,null,null,null,null,null,null,null,null,null,null,null,null,null,null,null,null,null,null,null,null,1,null,1,null,null,1]
[null,"BLANK Search Field","N"]
[null,"Total >",{"$f":"SUMPRODUCT(- -(ISNUMBER(SEARCH(\"Y\",$C$10:$C$745))),SUBTOTAL(3,OFFSET($C$10,ROW($C$10:$C$745)-ROW($C$10),0)))","v":735},{"$f":"SUBTOTAL(109,D10:D745)","v":0},{"$f":"SUBTOTAL(109,E10:E745)","v":194},{"$f":"SUBTOTAL(109,F10:F745)","v":65},{"$f":"SUBTOTAL(109,G10:G745)","v":9},{"$f":"SUBTOTAL(109,H10:H745)","v":6},{"$f":"SUBTOTAL(109,I10:I745)","v":40},{"$f":"SUBTOTAL(109,J10:J745)","v":22},{"$f":"SUBTOTAL(109,K10:K745)","v":4},{"$f":"SUBTOTAL(109,L10:L745)","v":38},{"$f":"SUBTOTAL(109,M10:M745)","v":19},{"$f":"SUBTOTAL(109,N10:N745)","v":28},{"$f":"SUBTOTAL(109,O10:O745)","v":107},{"$f":"SUBTOTAL(109,P10:P745)","v":58},{"$f":"SUBTOTAL(109,Q10:Q745)","v":38},{"$f":"SUBTOTAL(109,R10:R745)","v":39},{"$f":"SUBTOTAL(109,S10:S745)","v":79},{"$f":"SUBTOTAL(109,T10:T745)","v":65},{"$f":"SUBTOTAL(109,U10:U745)","v":68},{"$f":"SUBTOTAL(109,V10:V745)","v":374},{"$f":"SUBTOTAL(109,W10:W745)","v":582},{"$f":"SUBTOTAL(109,X10:X745)","v":7},{"$f":"SUBTOTAL(109,Y10:Y745)","v":71},{"$f":"SUBTOTAL(109,Z10:Z745)","v":130},{"$f":"SUBTOTAL(109,AA10:AA745)","v":25},{"$f":"SUBTOTAL(109,AB10:AB745)","v":92},{"$f":"SUBTOTAL(109,AC10:AC745)","v":84},{"$f":"SUBTOTAL(109,AD10:AD745)","v":259},{"$f":"SUBTOTAL(109,AE10:AE745)","v":29},{"$f":"SUBTOTAL(109,AF10:AF745)","v":120},{"$f":"SUBTOTAL(109,AG10:AG745)","v":12},{"$f":"SUBTOTAL(109,AH10:AH745)","v":28},{"$f":"SUBTOTAL(109,AI10:AI745)","v":42},{"$f":"SUBTOTAL(109,AJ10:AJ745)","v":43},{"$f":"SUBTOTAL(109,AK10:AK745)","v":24},{"$f":"SUBTOTAL(109,AL10:AL745)","v":84},{"$f":"SUBTOTAL(109,AM10:AM745)","v":19},{"$f":"SUBTOTAL(109,AN10:AN745)","v":61},{"$f":"SUBTOTAL(109,AO10:AO745)","v":39},{"$f":"SUBTOTAL(109,AP10:AP745)","v":24},{"$f":"SUBTOTAL(109,AQ10:AQ745)","v":38},{"$f":"SUBTOTAL(109,AR10:AR745)","v":44},{"$f":"SUBTOTAL(109,AS10:AS745)","v":48},{"$f":"SUBTOTAL(109,AT10:AT745)","v":55},{"$f":"SUBTOTAL(109,AU10:AU745)","v":213},{"$f":"SUBTOTAL(109,AV10:AV745)","v":50},{"$f":"SUBTOTAL(109,AW10:AW745)","v":73},{"$f":"SUBTOTAL(109,AX10:AX745)","v":82},{"$f":"SUBTOTAL(109,AY10:AY745)","v":61},{"$f":"SUBTOTAL(109,AZ10:AZ745)","v":40},{"$f":"SUBTOTAL(109,BA10:BA745)","v":39},{"$f":"SUBTOTAL(109,BB10:BB745)","v":65},{"$f":"SUBTOTAL(109,BC10:BC745)","v":28},{"$f":"SUBTOTAL(109,BD10:BD745)","v":5}]

{"sheet":"Sheet1","index":1,"n_rows":0,"n_cols":0,"rows_kept":0,"cut":false,"hidden":false,"merged":[]}